{"text_format":"1","workbook":"xlsx","n_sheets":23,"sheets":["General data","XBRL Errors","Index","Show","Hierarchies","R_01.00","R_06.00","R_04.00","R_08.00","R_07.00","R_01.01","R_06.01","R_04.01","R_02.00","R_02.01","R_02.02","R_03.00","R_05.00","R_05.01","R_09.00","R_10.00","R_11.00","R_12.00"],"not_rendered":{"charts":0,"images":3,"macros":1,"external_links":0,"defined_names":38,"comments":0,"pivot_tables":0},"unopened":[],"bounds":{"document_bytes":16777216,"sheet_cells":100000,"rows_first":2000,"rows_last":500,"rows_between":2000,"halvings":0,"cell_chars":16384,"cell_head_chars":4096},"cells_cut":0,"cells_raw":0,"read":"whole","date_system":"1900"}

{"sheet":"General data","index":0,"n_rows":247,"n_cols":23,"rows_kept":247,"cut":false,"hidden":false,"merged":[[0,6,2,6],[3,0,5,9]]}
[null,null,null,null,null,null,null,"Version:",null,"3.2.2.0.1",null,null,null,null,null,null,"Not applicable/All geographical areas","http://standards.iso.org/iso/17442","Remuneration Benchmarking","REM_BM: REMUNERATION BENCHMARKING","01","EUR","EBA 3.2.0 REM"]
[null,null,null,null,null,null,null,null,null,null,null,null,null,null,null,null,"AFGHANISTAN","http://standards.iso.org/iso/17442","Remuneration on gender pay gap","REM_GAP: REMUNERATION ON GENDER PAY GAP","14","AED"]
[null,null,null,null,null,null,null," ",null,null,null,null,null,null,null,null,"ALBANIA","http://standards.iso.org/iso/17442","Remuneration High Earners","REM_HE: REMUNERATION HIGH EARNERS","15","AFN"]
[null,null,null,null,null,null,null,null,null,null,null,null,null,null,null,null,"ALGERIA","http://standards.iso.org/iso/17442","Remunerations approved higher ratios, Country level","REM_HR_COUNTRY: REMUNERATIONS APPROVED HIGHER RATIOS, COUNTRY LEVEL","16","ALL"]
[null,null,null,null,null,null,null,null,null,null,null,null,null,null,null,null,"AMERICAN SAMOA","http://standards.iso.org/iso/17442","Remunerations approved higher ratios, Institution level","REM_HR_INSTITUTION: REMUNERATIONS APPROVED HIGHER RATIOS, INSTITUTION LEVEL","17","AMD"]
[null,null,null,null,null,null,null,null,null,null,null,null,null,null,null,null,"ANDORRA","http://standards.iso.org/iso/17442",null,null,"18","ANG"]
[null,null,null,null,null,null,null,null,null,null,null,null,null,null,null,null,"ANGOLA","http://standards.iso.org/iso/17442",null,null,"19","AOA"]
[null,"General Data",null,null,null,null,null,null,null,null,null,"/General data label{B}","/General data value{E}",null,null,null,"ANGUILLA","http://standards.iso.org/iso/17442",null,null,"20","ARS"]
[null,null,null,null,null,null,null,null,null,null,null,null,null,null,null,null,"ANTARCTICA","http://standards.iso.org/iso/17442",null,null,"All","AUD"]
["*","Identifier",":","LEGALIDENTIFIER20POS",{"$f":"\"\"&D10","v":"LEGALIDENTIFIER20POS"},{"$f":"IF(D10=\"\",1,0)","v":0},null,null,null,null,null,null,null,null,null,null,"ANTIGUA AND BARBUDA","http://standards.iso.org/iso/17442",null,null,"All","AWG"]
[null,null,null,null,null,null,null,null,null,null,null,null,null,null,null,null,"ARGENTINA","http://standards.iso.org/iso/17442",null,null,null,"AZN"]
["*","Period start date",":","2020-01-01",{"$f":"D12","v":"2020-01-01"},{"$f":"IF(D12=\"\",1,0)","v":0},null,null,null,null,null,null,null,null,null,null,"ARMENIA","http://standards.iso.org/iso/17442",null,null,null,"BAM"]
[null,null,null,null,null,null,null,null,null,null,null,null,null,null,null,null,"ARUBA","http://standards.iso.org/iso/17442",null,null,null,"BBD"]
["*","Period end date",":","2020-12-31",{"$f":"D14","v":"2020-12-31"},{"$f":"IF(D14=\"\",1,0)","v":0},null,null,null,null,null,null,null,null,null,null,"AUSTRALIA","http://standards.iso.org/iso/17442",null,null,null,"BDT"]
[null,null,null,null,null,null,null,null,null,null,null,null,null,null,null,null,"AUSTRIA","http://standards.iso.org/iso/17442",null,null,null,"BGN"]
[null,"Country",":","Not applicable/All geographical areas",null,null,null,null,null,null,null,null,null,null,null,null,"AZERBAIJAN","http://standards.iso.org/iso/17442",null,null,null,"BHD"]
[null,null,null,null,null,null,null,null,null,null,null,null,null,null,null,null,"BAHAMAS","http://standards.iso.org/iso/17442",null,null,null,"BIF"]
["*","Filing Currency",":","EUR",{"$f":"\"\"&D18","v":"EUR"},{"$f":"IF(D18=\"\",1,0)","v":0},null,null,null,null,null,null,null,null,null,null,"BAHRAIN","http://standards.iso.org/iso/17442",null,null,null,"BMD"]
[null,null,null,null,null,null,null,null,null,null,null,null,null,null,null,null,"BANGLADESH","http://standards.iso.org/iso/17442",null,null,null,"BND"]
["*","Taxonomy",":","EBA 3.2.0 REM",null,{"$f":"IF(D20=\"\",1,0)","v":0},null,null,null,null,null,null,null,null,null,null,"BARBADOS","http://standards.iso.org/iso/17442",null,null,null,"BOB"]
[null,null,null,null,null,null,null,null,null,null,null,null,null,null,null,null,"BELARUS","http://standards.iso.org/iso/17442",null,null,null,"BRL"]
["*","Module",":","Remuneration Benchmarking",{"$f":"IFERROR(VLOOKUP(D22,S:T,2,FALSE),\"\")","v":"REM_BM: REMUNERATION BENCHMARKING"},{"$f":"IF(D22=\"\",1,0)","v":0},null,null,null,null,null,null,null,null,null,null,"BELGIUM","http://www.swift.com",null,null,null,"BSD"]
[null,null,null,null,null,null,null,null,null,null,null,null,null,null,null,null,"BELIZE","http://standards.iso.org/iso/17442",null,null,null,"BTN"]
[null,null,null,null,null,null,null,null,null,null,null,null,null,null,null,null,"BENIN","http://standards.iso.org/iso/17442",null,null,null,"BWP"]
[null,"Advanced Requirements",null,null,null,null,null,null,null,null,null,null,null,null,null,null,"BERMUDA","http://standards.iso.org/iso/17442",null,null,null,"BYN"]
[null,null,null,null,null,null,null,null,null,null,null,null,null,null,null,null,"BHUTAN","http://standards.iso.org/iso/17442",null,null,null,"BZD"]
[null,"Identifier scheme",":",{"$f":"IFERROR(VLOOKUP(D16,Q:R,2,FALSE),R1)","v":"http://standards.iso.org/iso/17442"},{"$f":"D27","v":"http://standards.iso.org/iso/17442"},null,null,null,null,null,null,null,null,null,null,null,"BOLIVIA, PLURINATIONAL STATE OF","http://standards.iso.org/iso/17442",null,null,null,"CAD"]
[null,null,null,null,null,null,null,null,null,null,null,null,null,null,null,null,"BRAZIL","http://standards.iso.org/iso/17442",null,null,null,"COP"]
[null,"Monetary decimals",":",null,null,null,null,null,null,null,null,null,null,null,null,null,"BRITISH INDIAN OCEAN TERRITORY","http://standards.iso.org/iso/17442",null,null,null,"CRC"]
[null,null,null,null,null,null,null,null,null,null,null,null,null,null,null,null,"BRUNEI DARUSSALAM","http://standards.iso.org/iso/17442",null,null,null,"CUC"]
[null,"Monetary precision",":",-3,null,{"$f":" 0.5 * 10^(-1 * PP_MonetaryPrecision)","v":500},null,null,null,null,null,null,null,null,null,null,"BULGARIA","http://standards.iso.org/iso/17442",null,null,null,"CUP"]
[null,null,null,null,null,null,null,null,null,null,null,null,null,null,null,null,"BURKINA FASO","http://standards.iso.org/iso/17442",null,null,null,"CVE"]
[null,"Pure decimals",":",4,null,{"$f":" 0.5 * 10^(-1 * PP_DecimalPrecision)","v":5.0000000000000002E-5},null,null,null,null,null,null,null,null,null,null,"BURUNDI","http://standards.iso.org/iso/17442",null,null,null,"CZK"]
[null,null,null,null,null,null,null,null,null,null,null,null,null,null,null,null,"CAMBODIA","http://standards.iso.org/iso/17442",null,null,null,"DJF"]
[null,"Pure precision",":",4,null,null,null,"#XBRL made simple!",null,null,null,null,null,null,null,null,"CAMEROON","http://standards.iso.org/iso/17442",null,null,null,"DKK"]
[null,null,null,null,null,null,null,null,null,null,null,null,null,null,null,null,"CANADA","http://standards.iso.org/iso/17442",null,null,null,"DOP"]
[null,"Concatenate Errors",":",false,null,null,null,null,null,null,null,null,null,null,null,null,"CAPE VERDE","http://standards.iso.org/iso/17442",null,null,null,"DZD"]
[null,"Additional Requirements (Country specific)",null,null,null,null,null,null,null,null,null,null,null,null,null,null,"CAYMAN ISLANDS","http://standards.iso.org/iso/17442",null,null,null,"EGP"]
["BELGIUM",null,null,null,null,null,null,null,null,null,null,null,null,null,null,null,"CENTRAL AFRICAN REPUBLIC","http://standards.iso.org/iso/17442",null,null,null,"ERN"]
["BELGIUM","Post Parsing features",":",null,null,{"$f":"IF(AND(A40=PP_Country,D40=\"\"),1,0)","v":0},null,null,null,null,null,null,null,null,null,null,"CHAD","http://standards.iso.org/iso/17442",null,null,null,"ETB"]
["BELGIUM",null,null,null,null,null,null,null,null,null,null,null,null,null,null,null,"CHILE","http://standards.iso.org/iso/17442",null,null,null,"EUR"]
["BELGIUM","Reporter e-mail",":",null,null,null,null,null,null,null,null,null,null,null,null,null,"CHINA","http://standards.iso.org/iso/17442",null,null,null,"FJD"]
["BELGIUM",null,null,null,null,null,null,null,null,null,null,null,null,null,null,null,"CHRISTMAS ISLAND","http://standards.iso.org/iso/17442",null,null,null,"FKP"]
["BELGIUM","Declarer Type",":",null,{"$f":"\"\"&D44","v":""},{"$f":"IF(AND(A44=PP_Country,D44=\"\"),1,0)","v":0},null,null,null,null,null,null,null,null,null,null,"COCOS (KEELING) ISLANDS","http://standards.iso.org/iso/17442",null,null,null,"GBP"]
["BELGIUM",null,null,null,null,null,null,null,null,null,null,null,null,null,null,null,"COLOMBIA","http://standards.iso.org/iso/17442",null,null,null,"GEL"]
["BELGIUM","Domain",":",null,{"$f":"\"\"&D46","v":""},{"$f":"IF(AND(A46=PP_Country,D46=\"\"),1,0)","v":0},null,null,null,null,null,null,null,null,null,null,"COMOROS","http://standards.iso.org/iso/17442",null,null,null,"GGP"]
["BELGIUM",null,null,null,null,null,null,null,null,null,null,null,null,null,null,null,"CONGO","http://standards.iso.org/iso/17442",null,null,null,"GHS"]
[null,"ParsePort-specific parameters:",null,"SII_",null,null,null,null,null,null,null,null,null,null,null,null,"CONGO, THE DEMOCRATIC REPUBLIC OF THE","http://standards.iso.org/iso/17442",null,null,null,"GIP"]
[null,"Compress contexts",null,true,null,null,null,null,null,null,null,null,null,null,null,null,"COOK ISLANDS","http://standards.iso.org/iso/17442",null,null,null,"GMD"]
[null,"Language",null,"EN",null,null,null,null,null,null,null,null,null,null,null,null,"COSTA RICA","http://standards.iso.org/iso/17442",null,null,null,"GNF"]
[null,"Debug mode",null,false,null,null,null,null,null,null,null,null,null,null,null,null,"CÔTE D'IVOIRE","http://standards.iso.org/iso/17442",null,null,null,"GTQ"]
[null,"LookupValue fallback",null,false,null,null,null,null,null,null,null,null,null,null,null,null,"CROATIA","http://standards.iso.org/iso/17442",null,null,null,"GYD"]
[null,null,null,null,null,null,null,null,null,null,null,"//General data label{B}","//General data value{E}",null,null,null,"CUBA","http://standards.iso.org/iso/17442",null,null,null,"HKD"]
["BELGIUM",null,null,null,null,null,null,null,null,null,null,null,null,null,null,null,"CURAÇAO","http://standards.iso.org/iso/17442",null,null,null,"HNL"]
["BELGIUM",null,null,null,null,null,null,null,null,null,null,null,null,null,null,null,"CYPRUS","http://standards.iso.org/iso/17442",null,null,null,"HRK"]
[null,null,null,null,null,null,null,null,null,null,null,null,null,null,null,null,"CZECH REPUBLIC","http://standards.iso.org/iso/17442",null,null,null,"HTG"]
[null,null,null,null,null,null,null,null,null,null,null,null,null,null,null,null,"DENMARK","http://standards.iso.org/iso/17442",null,null,null,"HUF"]
[null,null,null,null,null,null,null,null,null,null,null,null,null,null,null,null,"DJIBOUTI","http://standards.iso.org/iso/17442",null,null,null,"IDR"]
[null,null,null,null,null,null,null,null,null,null,null,null,null,null,null,null,"DOMINICA","http://standards.iso.org/iso/17442",null,null,null,"ILS"]
[null,null,null,null,null,null,null,null,null,null,null,null,null,null,null,null,"DOMINICAN REPUBLIC","http://standards.iso.org/iso/17442",null,null,null,"IMP"]
[null,null,null,null,null,null,null,null,null,null,null,null,null,null,null,null,"ECUADOR","http://standards.iso.org/iso/17442",null,null,null,"INR"]
[null,null,null,null,null,null,null,null,null,null,null,null,null,null,null,null,"EGYPT","http://standards.iso.org/iso/17442",null,null,null,"IQD"]
[null,null,null,null,null,null,null,null,null,null,null,null,null,null,null,null,"EL SALVADOR","http://standards.iso.org/iso/17442",null,null,null,"IRR"]
[null,null,null,null,null,null,null,null,null,null,null,null,null,null,null,null,"EQUATORIAL GUINEA","http://standards.iso.org/iso/17442",null,null,null,"ISK"]
[null,null,null,null,null,null,null,null,null,null,null,null,null,null,null,null,"ERITREA","http://standards.iso.org/iso/17442",null,null,null,"JEP"]
[null,null,null,null,null,null,null,null,null,null,null,null,null,null,null,null,"ESTONIA","http://standards.iso.org/iso/17442",null,null,null,"JMD"]
[null,null,null,null,null,null,null,null,null,null,null,null,null,null,null,null,"ETHIOPIA","http://standards.iso.org/iso/17442",null,null,null,"JOD"]
[null,null,null,null,null,null,null,null,null,null,null,null,null,null,null,null,"FALKLAND ISLANDS (MALVINAS)","http://standards.iso.org/iso/17442",null,null,null,"JPY"]
[null,null,null,null,null,null,null,null,null,null,null,null,null,null,null,null,"FAROE ISLANDS","http://standards.iso.org/iso/17442",null,null,null,"KES"]
[null,null,null,null,null,null,null,null,null,null,null,null,null,null,null,null,"FIJI","http://standards.iso.org/iso/17442",null,null,null,"KGS"]
[null,null,null,null,null,null,null,null,null,null,null,null,null,null,null,null,"FINLAND","http://standards.iso.org/iso/17442",null,null,null,"KHR"]
[null,null,null,null,null,null,null,null,null,null,null,null,null,null,null,null,"FRANCE","http://standards.iso.org/iso/17442",null,null,null,"KMF"]
[null,null,null,null,null,null,null,null,null,null,null,null,null,null,null,null,"FRENCH GUIANA","http://standards.iso.org/iso/17442",null,null,null,"KPW"]
[null,null,null,null,null,null,null,null,null,null,null,null,null,null,null,null,"FRENCH POLYNESIA","http://standards.iso.org/iso/17442",null,null,null,"KRW"]
[null,null,null,null,null,null,null,null,null,null,null,null,null,null,null,null,"FRENCH SOUTHERN TERRITORIES","http://standards.iso.org/iso/17442",null,null,null,"KWD"]
[null,null,null,null,null,null,null,null,null,null,null,null,null,null,null,null,"GABON","http://standards.iso.org/iso/17442",null,null,null,"KYD"]
[null,null,null,null,null,null,null,null,null,null,null,null,null,null,null,null,"GAMBIA","http://standards.iso.org/iso/17442",null,null,null,"KZT"]
[null,null,null,null,null,null,null,null,null,null,null,null,null,null,null,null,"GEORGIA","http://standards.iso.org/iso/17442",null,null,null,"LAK"]
[null,null,null,null,null,null,null,null,null,null,null,null,null,null,null,null,"GERMANY","http://standards.iso.org/iso/17442",null,null,null,"LBP"]
[null,null,null,null,null,null,null,null,null,null,null,null,null,null,null,null,"GHANA","http://standards.iso.org/iso/17442",null,null,null,"LKR"]
[null,null,null,null,null,null,null,null,null,null,null,null,null,null,null,null,"GIBRALTAR","http://standards.iso.org/iso/17442",null,null,null,"LRD"]
[null,null,null,null,null,null,null,null,null,null,null,null,null,null,null,null,"GREECE","http://standards.iso.org/iso/17442",null,null,null,"LSL"]
[null,null,null,null,null,null,null,null,null,null,null,null,null,null,null,null,"GREENLAND","http://standards.iso.org/iso/17442",null,null,null,"LYD"]
[null,null,null,null,null,null,null,null,null,null,null,null,null,null,null,null,"GRENADA","http://standards.iso.org/iso/17442",null,null,null,"MAD"]
[null,null,null,null,null,null,null,null,null,null,null,null,null,null,null,null,"GUADELOUPE","http://standards.iso.org/iso/17442",null,null,null,"MDL"]
[null,null,null,null,null,null,null,null,null,null,null,null,null,null,null,null,"GUAM","http://standards.iso.org/iso/17442",null,null,null,"MGA"]
[null,null,null,null,null,null,null,null,null,null,null,null,null,null,null,null,"GUATEMALA","http://standards.iso.org/iso/17442",null,null,null,"MKD"]
[null,null,null,null,null,null,null,null,null,null,null,null,null,null,null,null,"GUERNSEY","http://standards.iso.org/iso/17442",null,null,null,"MMK"]
[null,null,null,null,null,null,null,null,null,null,null,null,null,null,null,null,"GUINEA","http://standards.iso.org/iso/17442",null,null,null,"MNT"]
[null,null,null,null,null,null,null,null,null,null,null,null,null,null,null,null,"GUINEA-BISSAU","http://standards.iso.org/iso/17442",null,null,null,"MOP"]
[null,null,null,null,null,null,null,null,null,null,null,null,null,null,null,null,"GUYANA","http://standards.iso.org/iso/17442",null,null,null,"MRO"]
[null,null,null,null,null,null,null,null,null,null,null,null,null,null,null,null,"HAITI","http://standards.iso.org/iso/17442",null,null,null,"MUR"]
[null,null,null,null,null,null,null,null,null,null,null,null,null,null,null,null,"HEARD ISLAND AND MCDONALD ISLANDS","http://standards.iso.org/iso/17442",null,null,null,"MVR"]
[null,null,null,null,null,null,null,null,null,null,null,null,null,null,null,null,"HOLY SEE (VATICAN CITY STATE)","http://standards.iso.org/iso/17442",null,null,null,"MWK"]
[null,null,null,null,null,null,null,null,null,null,null,null,null,null,null,null,"HONDURAS","http://standards.iso.org/iso/17442",null,null,null,"MXN"]
[null,null,null,null,null,null,null,null,null,null,null,null,null,null,null,null,"HONG KONG","http://standards.iso.org/iso/17442",null,null,null,"MYR"]
[null,null,null,null,null,null,null,null,null,null,null,null,null,null,null,null,"HUNGARY","http://standards.iso.org/iso/17442",null,null,null,"MZN"]
[null,null,null,null,null,null,null,null,null,null,null,null,null,null,null,null,"ICELAND","http://standards.iso.org/iso/17442",null,null,null,"NAD"]
[null,null,null,null,null,null,null,null,null,null,null,null,null,null,null,null,"INDIA","http://standards.iso.org/iso/17442",null,null,null,"NGN"]
[null,null,null,null,null,null,null,null,null,null,null,null,null,null,null,null,"INDONESIA","http://standards.iso.org/iso/17442",null,null,null,"NIO"]
[null,null,null,null,null,null,null,null,null,null,null,null,null,null,null,null,"IRAN, ISLAMIC REPUBLIC OF","http://standards.iso.org/iso/17442",null,null,null,"NOK"]
[null,null,null,null,null,null,null,null,null,null,null,null,null,null,null,null,"IRAQ","http://standards.iso.org/iso/17442",null,null,null,"NPR"]
[null,null,null,null,null,null,null,null,null,null,null,null,null,null,null,null,"IRELAND","http://standards.iso.org/iso/17442",null,null,null,"NZD"]
[null,null,null,null,null,null,null,null,null,null,null,null,null,null,null,null,"ISLE OF MAN","http://standards.iso.org/iso/17442",null,null,null,"OMR"]
[null,null,null,null,null,null,null,null,null,null,null,null,null,null,null,null,"ISRAEL","http://standards.iso.org/iso/17442",null,null,null,"PAB"]
[null,null,null,null,null,null,null,null,null,null,null,null,null,null,null,null,"ITALY","http://standards.iso.org/iso/17442",null,null,null,"PEN"]
[null,null,null,null,null,null,null,null,null,null,null,null,null,null,null,null,"JAMAICA","http://standards.iso.org/iso/17442",null,null,null,"PGK"]
[null,null,null,null,null,null,null,null,null,null,null,null,null,null,null,null,"JAPAN","http://standards.iso.org/iso/17442",null,null,null,"PHP"]
[null,null,null,null,null,null,null,null,null,null,null,null,null,null,null,null,"JERSEY","http://standards.iso.org/iso/17442",null,null,null,"PKR"]
[null,null,null,null,null,null,null,null,null,null,null,null,null,null,null,null,"JORDAN","http://standards.iso.org/iso/17442",null,null,null,"PLN"]
[null,null,null,null,null,null,null,null,null,null,null,null,null,null,null,null,"KAZAKHSTAN","http://standards.iso.org/iso/17442",null,null,null,"PYG"]
[null,null,null,null,null,null,null,null,null,null,null,null,null,null,null,null,"KENYA","http://standards.iso.org/iso/17442",null,null,null,"QAR"]
[null,null,null,null,null,null,null,null,null,null,null,null,null,null,null,null,"KIRIBATI","http://standards.iso.org/iso/17442",null,null,null,"RON"]
[null,null,null,null,null,null,null,null,null,null,null,null,null,null,null,null,"KOREA, DEMOCRATIC PEOPLE'S REPUBLIC OF","http://standards.iso.org/iso/17442",null,null,null,"RSD"]
[null,null,null,null,null,null,null,null,null,null,null,null,null,null,null,null,"KOREA, REPUBLIC OF","http://standards.iso.org/iso/17442",null,null,null,"RUB"]
[null,null,null,null,null,null,null,null,null,null,null,null,null,null,null,null,"KUWAIT","http://standards.iso.org/iso/17442",null,null,null,"RWF"]
[null,null,null,null,null,null,null,null,null,null,null,null,null,null,null,null,"KYRGYZSTAN","http://standards.iso.org/iso/17442",null,null,null,"SAR"]
[null,null,null,null,null,null,null,null,null,null,null,null,null,null,null,null,"LAO PEOPLE'S DEMOCRATIC REPUBLIC","http://standards.iso.org/iso/17442",null,null,null,"SBD"]
[null,null,null,null,null,null,null,null,null,null,null,null,null,null,null,null,"LATVIA","http://standards.iso.org/iso/17442",null,null,null,"SCR"]
[null,null,null,null,null,null,null,null,null,null,null,null,null,null,null,null,"LEBANON","http://standards.iso.org/iso/17442",null,null,null,"SDG"]
[null,null,null,null,null,null,null,null,null,null,null,null,null,null,null,null,"LESOTHO","http://standards.iso.org/iso/17442",null,null,null,"SEK"]
[null,null,null,null,null,null,null,null,null,null,null,null,null,null,null,null,"LIBERIA","http://standards.iso.org/iso/17442",null,null,null,"SGD"]
[null,null,null,null,null,null,null,null,null,null,null,null,null,null,null,null,"LIBYA","http://standards.iso.org/iso/17442",null,null,null,"SHP"]
[null,null,null,null,null,null,null,null,null,null,null,null,null,null,null,null,"LIECHTENSTEIN","http://standards.iso.org/iso/17442",null,null,null,"SLL"]
[null,null,null,null,null,null,null,null,null,null,null,null,null,null,null,null,"LITHUANIA","http://standards.iso.org/iso/17442",null,null,null,"SOS"]
[null,null,null,null,null,null,null,null,null,null,null,null,null,null,null,null,"LUXEMBOURG","http://www.cssf.lu",null,null,null,"SPL"]
[null,null,null,null,null,null,null,null,null,null,null,null,null,null,null,null,"MACAO","http://standards.iso.org/iso/17442",null,null,null,"SRD"]
[null,null,null,null,null,null,null,null,null,null,null,null,null,null,null,null,"MACEDONIA, THE FORMER YUGOSLAV REPUBLIC OF","http://standards.iso.org/iso/17442",null,null,null,"STD"]
[null,null,null,null,null,null,null,null,null,null,null,null,null,null,null,null,"MADAGASCAR","http://standards.iso.org/iso/17442",null,null,null,"SVC"]
[null,null,null,null,null,null,null,null,null,null,null,null,null,null,null,null,"MALAWI","http://standards.iso.org/iso/17442",null,null,null,"SYP"]
[null,null,null,null,null,null,null,null,null,null,null,null,null,null,null,null,"MALAYSIA","http://standards.iso.org/iso/17442",null,null,null,"SZL"]
[null,null,null,null,null,null,null,null,null,null,null,null,null,null,null,null,"MALDIVES","http://standards.iso.org/iso/17442",null,null,null,"THB"]
[null,null,null,null,null,null,null,null,null,null,null,null,null,null,null,null,"MALI","http://standards.iso.org/iso/17442",null,null,null,"TJS"]
[null,null,null,null,null,null,null,null,null,null,null,null,null,null,null,null,"MALTA","http://standards.iso.org/iso/17442",null,null,null,"TMT"]
[null,null,null,null,null,null,null,null,null,null,null,null,null,null,null,null,"MARSHALL ISLANDS","http://standards.iso.org/iso/17442",null,null,null,"TND"]
[null,null,null,null,null,null,null,null,null,null,null,null,null,null,null,null,"MARTINIQUE","http://standards.iso.org/iso/17442",null,null,null,"TOP"]
[null,null,null,null,null,null,null,null,null,null,null,null,null,null,null,null,"MAURITANIA","http://standards.iso.org/iso/17442",null,null,null,"TRY"]
[null,null,null,null,null,null,null,null,null,null,null,null,null,null,null,null,"MAURITIUS","http://standards.iso.org/iso/17442",null,null,null,"TTD"]
[null,null,null,null,null,null,null,null,null,null,null,null,null,null,null,null,"MAYOTTE","http://standards.iso.org/iso/17442",null,null,null,"TVD"]
[null,null,null,null,null,null,null,null,null,null,null,null,null,null,null,null,"MEXICO","http://standards.iso.org/iso/17442",null,null,null,"TWD"]
[null,null,null,null,null,null,null,null,null,null,null,null,null,null,null,null,"MICRONESIA, FEDERATED STATES OF","http://standards.iso.org/iso/17442",null,null,null,"TZS"]
[null,null,null,null,null,null,null,null,null,null,null,null,null,null,null,null,"MOLDOVA, REPUBLIC OF","http://standards.iso.org/iso/17442",null,null,null,"UAH"]
[null,null,null,null,null,null,null,null,null,null,null,null,null,null,null,null,"MONACO","http://standards.iso.org/iso/17442",null,null,null,"UGX"]
[null,null,null,null,null,null,null,null,null,null,null,null,null,null,null,null,"MONGOLIA","http://standards.iso.org/iso/17442",null,null,null,"USD"]
[null,null,null,null,null,null,null,null,null,null,null,null,null,null,null,null,"MONTENEGRO","http://standards.iso.org/iso/17442",null,null,null,"UYU"]
[null,null,null,null,null,null,null,null,null,null,null,null,null,null,null,null,"MONTSERRAT","http://standards.iso.org/iso/17442",null,null,null,"UZS"]
[null,null,null,null,null,null,null,null,null,null,null,null,null,null,null,null,"MOROCCO","http://standards.iso.org/iso/17442",null,null,null,"VEF"]
[null,null,null,null,null,null,null,null,null,null,null,null,null,null,null,null,"MOZAMBIQUE","http://standards.iso.org/iso/17442",null,null,null,"VND"]
[null,null,null,null,null,null,null,null,null,null,null,null,null,null,null,null,"MYANMAR","http://standards.iso.org/iso/17442",null,null,null,"VUV"]
[null,null,null,null,null,null,null,null,null,null,null,null,null,null,null,null,"NAMIBIA","http://standards.iso.org/iso/17442",null,null,null,"WST"]
[null,null,null,null,null,null,null,null,null,null,null,null,null,null,null,null,"NAURU","http://standards.iso.org/iso/17442",null,null,null,"XAF"]
[null,null,null,null,null,null,null,null,null,null,null,null,null,null,null,null,"NEPAL","http://standards.iso.org/iso/17442",null,null,null,"XCD"]
[null,null,null,null,null,null,null,null,null,null,null,null,null,null,null,null,"NETHERLANDS","http://standards.iso.org/iso/17442",null,null,null,"XDR"]
[null,null,null,null,null,null,null,null,null,null,null,null,null,null,null,null,"NEW CALEDONIA","http://standards.iso.org/iso/17442",null,null,null,"XOF"]
[null,null,null,null,null,null,null,null,null,null,null,null,null,null,null,null,"NEW ZEALAND","http://standards.iso.org/iso/17442",null,null,null,"XPF"]
[null,null,null,null,null,null,null,null,null,null,null,null,null,null,null,null,"NICARAGUA","http://standards.iso.org/iso/17442",null,null,null,"YER"]
[null,null,null,null,null,null,null,null,null,null,null,null,null,null,null,null,"NIGER","http://standards.iso.org/iso/17442",null,null,null,"ZAR"]
[null,null,null,null,null,null,null,null,null,null,null,null,null,null,null,null,"NIGERIA","http://standards.iso.org/iso/17442",null,null,null,"ZMW"]
[null,null,null,null,null,null,null,null,null,null,null,null,null,null,null,null,"NIUE","http://standards.iso.org/iso/17442",null,null,null,"ZWD"]
[null,null,null,null,null,null,null,null,null,null,null,null,null,null,null,null,"NORFOLK ISLAND","http://standards.iso.org/iso/17442"]
[null,null,null,null,null,null,null,null,null,null,null,null,null,null,null,null,"NORTHERN MARIANA ISLANDS","http://standards.iso.org/iso/17442"]
[null,null,null,null,null,null,null,null,null,null,null,null,null,null,null,null,"NORWAY","SC"]
[null,null,null,null,null,null,null,null,null,null,null,null,null,null,null,null,"OMAN","http://standards.iso.org/iso/17442"]
[null,null,null,null,null,null,null,null,null,null,null,null,null,null,null,null,"PAKISTAN","http://standards.iso.org/iso/17442"]
[null,null,null,null,null,null,null,null,null,null,null,null,null,null,null,null,"PALAU","http://standards.iso.org/iso/17442"]
[null,null,null,null,null,null,null,null,null,null,null,null,null,null,null,null,"PALESTINIAN TERRITORY, OCCUPIED","http://standards.iso.org/iso/17442"]
[null,null,null,null,null,null,null,null,null,null,null,null,null,null,null,null,"PANAMA","http://standards.iso.org/iso/17442"]
[null,null,null,null,null,null,null,null,null,null,null,null,null,null,null,null,"PAPUA NEW GUINEA","http://standards.iso.org/iso/17442"]
[null,null,null,null,null,null,null,null,null,null,null,null,null,null,null,null,"PARAGUAY","http://standards.iso.org/iso/17442"]
[null,null,null,null,null,null,null,null,null,null,null,null,null,null,null,null,"PERU","http://standards.iso.org/iso/17442"]
[null,null,null,null,null,null,null,null,null,null,null,null,null,null,null,null,"PHILIPPINES","http://standards.iso.org/iso/17442"]
[null,null,null,null,null,null,null,null,null,null,null,null,null,null,null,null,"PITCAIRN","http://standards.iso.org/iso/17442"]
[null,null,null,null,null,null,null,null,null,null,null,null,null,null,null,null,"POLAND","http://standards.iso.org/iso/17442"]
[null,null,null,null,null,null,null,null,null,null,null,null,null,null,null,null,"PORTUGAL","http://standards.iso.org/iso/17442"]
[null,null,null,null,null,null,null,null,null,null,null,null,null,null,null,null,"PUERTO RICO","http://standards.iso.org/iso/17442"]
[null,null,null,null,null,null,null,null,null,null,null,null,null,null,null,null,"QATAR","http://standards.iso.org/iso/17442"]
[null,null,null,null,null,null,null,null,null,null,null,null,null,null,null,null,"RÉUNION","http://standards.iso.org/iso/17442"]
[null,null,null,null,null,null,null,null,null,null,null,null,null,null,null,null,"ROMANIA","http://standards.iso.org/iso/17442"]
[null,null,null,null,null,null,null,null,null,null,null,null,null,null,null,null,"RUSSIAN FEDERATION","http://standards.iso.org/iso/17442"]
[null,null,null,null,null,null,null,null,null,null,null,null,null,null,null,null,"RWANDA","http://standards.iso.org/iso/17442"]
[null,null,null,null,null,null,null,null,null,null,null,null,null,null,null,null,"SAINT BARTHÉLEMY","http://standards.iso.org/iso/17442"]
[null,null,null,null,null,null,null,null,null,null,null,null,null,null,null,null,"SAINT HELENA, ASCENSION AND TRISTAN DA CUNHA","http://standards.iso.org/iso/17442"]
[null,null,null,null,null,null,null,null,null,null,null,null,null,null,null,null,"SAINT KITTS AND NEVIS","http://standards.iso.org/iso/17442"]
[null,null,null,null,null,null,null,null,null,null,null,null,null,null,null,null,"SAINT LUCIA","http://standards.iso.org/iso/17442"]
[null,null,null,null,null,null,null,null,null,null,null,null,null,null,null,null,"SAINT MARTIN (FRENCH PART)","http://standards.iso.org/iso/17442"]
[null,null,null,null,null,null,null,null,null,null,null,null,null,null,null,null,"SAINT PIERRE AND MIQUELON","http://standards.iso.org/iso/17442"]
[null,null,null,null,null,null,null,null,null,null,null,null,null,null,null,null,"SAINT VINCENT AND THE GRENADINES","http://standards.iso.org/iso/17442"]
[null,null,null,null,null,null,null,null,null,null,null,null,null,null,null,null,"SAMOA","http://standards.iso.org/iso/17442"]
[null,null,null,null,null,null,null,null,null,null,null,null,null,null,null,null,"SAN MARINO","http://standards.iso.org/iso/17442"]
[null,null,null,null,null,null,null,null,null,null,null,null,null,null,null,null,"SAO TOME AND PRINCIPE","http://standards.iso.org/iso/17442"]
[null,null,null,null,null,null,null,null,null,null,null,null,null,null,null,null,"SAUDI ARABIA","http://standards.iso.org/iso/17442"]
[null,null,null,null,null,null,null,null,null,null,null,null,null,null,null,null,"SENEGAL","http://standards.iso.org/iso/17442"]
[null,null,null,null,null,null,null,null,null,null,null,null,null,null,null,null,"SERBIA","http://standards.iso.org/iso/17442"]
[null,null,null,null,null,null,null,null,null,null,null,null,null,null,null,null,"SEYCHELLES","http://standards.iso.org/iso/17442"]
[null,null,null,null,null,null,null,null,null,null,null,null,null,null,null,null,"SIERRA LEONE","http://standards.iso.org/iso/17442"]
[null,null,null,null,null,null,null,null,null,null,null,null,null,null,null,null,"SINGAPORE","http://standards.iso.org/iso/17442"]
[null,null,null,null,null,null,null,null,null,null,null,null,null,null,null,null,"SINT MAARTEN (DUTCH PART)","http://standards.iso.org/iso/17442"]
[null,null,null,null,null,null,null,null,null,null,null,null,null,null,null,null,"SLOVAKIA","http://standards.iso.org/iso/17442"]
[null,null,null,null,null,null,null,null,null,null,null,null,null,null,null,null,"SLOVENIA","http://standards.iso.org/iso/17442"]
[null,null,null,null,null,null,null,null,null,null,null,null,null,null,null,null,"SOLOMON ISLANDS","http://standards.iso.org/iso/17442"]
[null,null,null,null,null,null,null,null,null,null,null,null,null,null,null,null,"SOMALIA","http://standards.iso.org/iso/17442"]
[null,null,null,null,null,null,null,null,null,null,null,null,null,null,null,null,"SOUTH AFRICA","http://standards.iso.org/iso/17442"]
[null,null,null,null,null,null,null,null,null,null,null,null,null,null,null,null,"SOUTH GEORGIA AND THE SOUTH SANDWICH ISLANDS","http://standards.iso.org/iso/17442"]
[null,null,null,null,null,null,null,null,null,null,null,null,null,null,null,null,"SOUTH SUDAN","http://standards.iso.org/iso/17442"]
[null,null,null,null,null,null,null,null,null,null,null,null,null,null,null,null,"SPAIN","http://standards.iso.org/iso/17442"]
[null,null,null,null,null,null,null,null,null,null,null,null,null,null,null,null,"SRI LANKA","http://standards.iso.org/iso/17442"]
[null,null,null,null,null,null,null,null,null,null,null,null,null,null,null,null,"SUDAN","http://standards.iso.org/iso/17442"]
[null,null,null,null,null,null,null,null,null,null,null,null,null,null,null,null,"SURINAME","http://standards.iso.org/iso/17442"]
[null,null,null,null,null,null,null,null,null,null,null,null,null,null,null,null,"SVALBARD AND JAN MAYEN","http://standards.iso.org/iso/17442"]
[null,null,null,null,null,null,null,null,null,null,null,null,null,null,null,null,"SWAZILAND","http://standards.iso.org/iso/17442"]
[null,null,null,null,null,null,null,null,null,null,null,null,null,null,null,null,"SWEDEN","http://www.fi.se/instnr"]
[null,null,null,null,null,null,null,null,null,null,null,null,null,null,null,null,"SWITZERLAND","http://standards.iso.org/iso/17442"]
[null,null,null,null,null,null,null,null,null,null,null,null,null,null,null,null,"SYRIAN ARAB REPUBLIC","http://standards.iso.org/iso/17442"]
[null,null,null,null,null,null,null,null,null,null,null,null,null,null,null,null,"TAIWAN, PROVINCE OF CHINA","http://standards.iso.org/iso/17442"]
[null,null,null,null,null,null,null,null,null,null,null,null,null,null,null,null,"TAJIKISTAN","http://standards.iso.org/iso/17442"]
[null,null,null,null,null,null,null,null,null,null,null,null,null,null,null,null,"TANZANIA, UNITED REPUBLIC OF","http://standards.iso.org/iso/17442"]
[null,null,null,null,null,null,null,null,null,null,null,null,null,null,null,null,"THAILAND","http://standards.iso.org/iso/17442"]
[null,null,null,null,null,null,null,null,null,null,null,null,null,null,null,null,"TIMOR-LESTE","http://standards.iso.org/iso/17442"]
[null,null,null,null,null,null,null,null,null,null,null,null,null,null,null,null,"TOGO","http://standards.iso.org/iso/17442"]
[null,null,null,null,null,null,null,null,null,null,null,null,null,null,null,null,"TOKELAU","http://standards.iso.org/iso/17442"]
[null,null,null,null,null,null,null,null,null,null,null,null,null,null,null,null,"TONGA","http://standards.iso.org/iso/17442"]
[null,null,null,null,null,null,null,null,null,null,null,null,null,null,null,null,"TRINIDAD AND TOBAGO","http://standards.iso.org/iso/17442"]
[null,null,null,null,null,null,null,null,null,null,null,null,null,null,null,null,"TUNISIA","http://standards.iso.org/iso/17442"]
[null,null,null,null,null,null,null,null,null,null,null,null,null,null,null,null,"TURKEY","http://standards.iso.org/iso/17442"]
[null,null,null,null,null,null,null,null,null,null,null,null,null,null,null,null,"TURKMENISTAN","http://standards.iso.org/iso/17442"]
[null,null,null,null,null,null,null,null,null,null,null,null,null,null,null,null,"TURKS AND CAICOS ISLANDS","http://standards.iso.org/iso/17442"]
[null,null,null,null,null,null,null,null,null,null,null,null,null,null,null,null,"TUVALU","http://standards.iso.org/iso/17442"]
[null,null,null,null,null,null,null,null,null,null,null,null,null,null,null,null,"UGANDA","http://standards.iso.org/iso/17442"]
[null,null,null,null,null,null,null,null,null,null,null,null,null,null,null,null,"UKRAINE","http://standards.iso.org/iso/17442"]
[null,null,null,null,null,null,null,null,null,null,null,null,null,null,null,null,"UNITED ARAB EMIRATES","http://standards.iso.org/iso/17442"]
[null,null,null,null,null,null,null,null,null,null,null,null,null,null,null,null,"UNITED KINGDOM","http://standards.iso.org/iso/17442"]
[null,null,null,null,null,null,null,null,null,null,null,null,null,null,null,null,"UNITED STATES","http://standards.iso.org/iso/17442"]
[null,null,null,null,null,null,null,null,null,null,null,null,null,null,null,null,"UNITED STATES MINOR OUTLYING ISLANDS","http://standards.iso.org/iso/17442"]
[null,null,null,null,null,null,null,null,null,null,null,null,null,null,null,null,"URUGUAY","http://standards.iso.org/iso/17442"]
[null,null,null,null,null,null,null,null,null,null,null,null,null,null,null,null,"UZBEKISTAN","http://standards.iso.org/iso/17442"]
[null,null,null,null,null,null,null,null,null,null,null,null,null,null,null,null,"VANUATU","http://standards.iso.org/iso/17442"]
[null,null,null,null,null,null,null,null,null,null,null,null,null,null,null,null,"VENEZUELA, BOLIVARIAN REPUBLIC OF","http://standards.iso.org/iso/17442"]
[null,null,null,null,null,null,null,null,null,null,null,null,null,null,null,null,"VIET NAM","http://standards.iso.org/iso/17442"]
[null,null,null,null,null,null,null,null,null,null,null,null,null,null,null,null,"VIRGIN ISLANDS, BRITISH","http://standards.iso.org/iso/17442"]
[null,null,null,null,null,null,null,null,null,null,null,null,null,null,null,null,"VIRGIN ISLANDS, U.S.","http://standards.iso.org/iso/17442"]
[null,null,null,null,null,null,null,null,null,null,null,null,null,null,null,null,"WALLIS AND FUTUNA","http://standards.iso.org/iso/17442"]
[null,null,null,null,null,null,null,null,null,null,null,null,null,null,null,null,"WESTERN SAHARA","http://standards.iso.org/iso/17442"]
[null,null,null,null,null,null,null,null,null,null,null,null,null,null,null,null,"YEMEN","http://standards.iso.org/iso/17442"]
[null,null,null,null,null,null,null,null,null,null,null,null,null,null,null,null,"ZAMBIA","http://standards.iso.org/iso/17442"]
[null,null,null,null,null,null,null,null,null,null,null,null,null,null,null,null,"ZIMBABWE","http://standards.iso.org/iso/17442"]
[null,null,null,null,null,null,null,null,null,null,null,null,null,null,null,null,"ÅLAND ISLANDS","http://standards.iso.org/iso/17442"]
[null,null,null,null,null,null,null,null,null,null,null,null,null,null,null,null,"Other Countries","http://standards.iso.org/iso/17442"]

{"sheet":"XBRL Errors","index":1,"n_rows":1,"n_cols":2,"rows_kept":1,"cut":false,"hidden":false,"merged":[]}
["Timestamp","Error"]

{"sheet":"Index","index":2,"n_rows":23,"n_cols":5,"rows_kept":23,"cut":false,"hidden":false,"merged":[[2,1,2,14]]}
[]
[]
[null,"Index"]
[]
[null,"Template Code","Template Name","Reporting Status"]
[null,"R_01.00","Information on remuneration for all staff",null,{"$f":"IF($D$6=\"Reported\",\"@ForceFilingCode:true\",IF($D$6=\"Not Reported\",\"@ForceFilingCode:false\",\"\"))","v":""}]
[null,"R_06.00","Information on the gender pay gap",null,{"$f":"IF($D$7=\"Reported\",\"@ForceFilingCode:true\",IF($D$7=\"Not Reported\",\"@ForceFilingCode:false\",\"\"))","v":""}]
[null,"R_04.00","Information on the remuneration of high earners",null,{"$f":"IF($D$8=\"Reported\",\"@ForceFilingCode:true\",IF($D$8=\"Not Reported\",\"@ForceFilingCode:false\",\"\"))","v":""}]
[null,"R_08.00","Approved higher ratios between variable and fixed remuneration – aggregation by competent authorities",null,{"$f":"IF($D$9=\"Reported\",\"@ForceFilingCode:true\",IF($D$9=\"Not Reported\",\"@ForceFilingCode:false\",\"\"))","v":""}]
[null,"R_07.00","Approved higher ratios between variable and fixed remuneration – institutions",null,{"$f":"IF($D$10=\"Reported\",\"@ForceFilingCode:true\",IF($D$10=\"Not Reported\",\"@ForceFilingCode:false\",\"\"))","v":""}]
[null,"R_01.01","General information and information on remuneration for all staff in investment firms",null,{"$f":"IF($D$11=\"Reported\",\"@ForceFilingCode:true\",IF($D$11=\"Not Reported\",\"@ForceFilingCode:false\",\"\"))","v":""}]
[null,"R_06.01","Information on the gender pay gap for IF",null,{"$f":"IF($D$12=\"Reported\",\"@ForceFilingCode:true\",IF($D$12=\"Not Reported\",\"@ForceFilingCode:false\",\"\"))","v":""}]
[null,"R_04.01","Information on the remuneration of high earners - IFD",null,{"$f":"IF($D$13=\"Reported\",\"@ForceFilingCode:true\",IF($D$13=\"Not Reported\",\"@ForceFilingCode:false\",\"\"))","v":""}]
[null,"R_02.00","Information on remuneration of identified staff",null,{"$f":"IF($D$14=\"Reported\",\"@ForceFilingCode:true\",IF($D$14=\"Not Reported\",\"@ForceFilingCode:false\",\"\"))","v":""}]
[null,"R_02.01","Information on remuneration of identified staff in investment firms",null,{"$f":"IF($D$15=\"Reported\",\"@ForceFilingCode:true\",IF($D$15=\"Not Reported\",\"@ForceFilingCode:false\",\"\"))","v":""}]
[null,"R_02.02","Information on remuneration of identified staff per business area",null,{"$f":"IF($D$16=\"Reported\",\"@ForceFilingCode:true\",IF($D$16=\"Not Reported\",\"@ForceFilingCode:false\",\"\"))","v":""}]
[null,"R_03.00","Information on identified staff remunerated EUR 1 million or more per financial year",null,{"$f":"IF($D$17=\"Reported\",\"@ForceFilingCode:true\",IF($D$17=\"Not Reported\",\"@ForceFilingCode:false\",\"\"))","v":""}]
[null,"R_05.00","Derogations from the application of requirements to pay out parts of variable remuneration deferred and in instruments under Directive 2013/36/EU (CRD)",null,{"$f":"IF($D$18=\"Reported\",\"@ForceFilingCode:true\",IF($D$18=\"Not Reported\",\"@ForceFilingCode:false\",\"\"))","v":""}]
[null,"R_05.01","Derogations from the application of requirement to pay out a part of variable remuneration deferred and in instruments for investment firms under Directive (EU) 2019/2034",null,{"$f":"IF($D$19=\"Reported\",\"@ForceFilingCode:true\",IF($D$19=\"Not Reported\",\"@ForceFilingCode:false\",\"\"))","v":""}]
[null,"R_09.00","Remuneration awarded for the financial year",null,{"$f":"IF($D$20=\"Reported\",\"@ForceFilingCode:true\",IF($D$20=\"Not Reported\",\"@ForceFilingCode:false\",\"\"))","v":""}]
[null,"R_10.00","Special payments  to staff whose professional activities have a material impact on institutions’ risk profile (identified staff)",null,{"$f":"IF($D$21=\"Reported\",\"@ForceFilingCode:true\",IF($D$21=\"Not Reported\",\"@ForceFilingCode:false\",\"\"))","v":""}]
[null,"R_11.00","Deferred remuneration",null,{"$f":"IF($D$22=\"Reported\",\"@ForceFilingCode:true\",IF($D$22=\"Not Reported\",\"@ForceFilingCode:false\",\"\"))","v":""}]
[null,"R_12.00","Information on remuneration of staff whose professional activities have a material impact on institutions’ risk profile (identified staff)",null,{"$f":"IF($D$23=\"Reported\",\"@ForceFilingCode:true\",IF($D$23=\"Not Reported\",\"@ForceFilingCode:false\",\"\"))","v":""}]

{"sheet":"Show","index":3,"n_rows":45,"n_cols":7,"rows_kept":45,"cut":false,"hidden":true,"merged":[]}
["Sheet","Prefix","REM_BM: REMUNERATION BENCHMARKING","REM_GAP: REMUNERATION ON GENDER PAY GAP","REM_HE: REMUNERATION HIGH EARNERS","REM_HR_COUNTRY: REMUNERATIONS APPROVED HIGHER RATIOS, COUNTRY LEVEL","REM_HR_INSTITUTION: REMUNERATIONS APPROVED HIGHER RATIOS, INSTITUTION LEVEL"]
["R_01.00",{"$f":"IF(HLOOKUP('General data'!$E$22,$C$1:$G$2,2,FALSE)=\"X\",\"/\",\"!\")","v":"/"},"X"]
["R_06.00",{"$f":"IF(HLOOKUP('General data'!$E$22,$C$1:$G$3,3,FALSE)=\"X\",\"/\",\"!\")","v":"!"},null,"X"]
["R_04.00",{"$f":"IF(HLOOKUP('General data'!$E$22,$C$1:$G$4,4,FALSE)=\"X\",\"/\",\"!\")","v":"!"},null,null,"X"]
["R_08.00",{"$f":"IF(HLOOKUP('General data'!$E$22,$C$1:$G$5,5,FALSE)=\"X\",\"/\",\"!\")","v":"!"},null,null,null,"X"]
["R_07.00",{"$f":"IF(HLOOKUP('General data'!$E$22,$C$1:$G$6,6,FALSE)=\"X\",\"/\",\"!\")","v":"!"},null,null,null,null,"X"]
["R_01.01",{"$f":"IF(AND(HLOOKUP('General data'!$E$22,$C$1:$H$7,7,FALSE)=\"X\",Index!D11=\"Reported\"),\"/\",\"!\")","v":"!"},"X"]
["R_06.01",{"$f":"IF(AND(HLOOKUP('General data'!$E$22,$C$1:$H$8,8,FALSE)=\"X\",Index!D12=\"Reported\"),\"/\",\"!\")","v":"!"},null,"X"]
["R_04.01",{"$f":"IF(AND(HLOOKUP('General data'!$E$22,$C$1:$H$9,9,FALSE)=\"X\",Index!D13=\"Reported\"),\"/\",\"!\")","v":"!"},null,null,"X"]
["R_02.00",{"$f":"IF(AND(HLOOKUP('General data'!$E$22,$C$1:$H$10,10,FALSE)=\"X\",Index!D14=\"Reported\"),\"/\",\"!\")","v":"!"},"X"]
["R_02.01",{"$f":"IF(AND(HLOOKUP('General data'!$E$22,$C$1:$H$11,11,FALSE)=\"X\",Index!D15=\"Reported\"),\"/\",\"!\")","v":"!"},"X"]
["R_02.02",{"$f":"IF(AND(HLOOKUP('General data'!$E$22,$C$1:$H$12,12,FALSE)=\"X\",Index!D16=\"Reported\"),\"/\",\"!\")","v":"!"},"X"]
["R_03.00",{"$f":"IF(AND(HLOOKUP('General data'!$E$22,$C$1:$H$13,13,FALSE)=\"X\",Index!D17=\"Reported\"),\"/\",\"!\")","v":"!"},"X"]
["R_05.00",{"$f":"IF(AND(HLOOKUP('General data'!$E$22,$C$1:$H$14,14,FALSE)=\"X\",Index!D18=\"Reported\"),\"/\",\"!\")","v":"!"},"X"]
["R_05.01",{"$f":"IF(AND(HLOOKUP('General data'!$E$22,$C$1:$H$15,15,FALSE)=\"X\",Index!D19=\"Reported\"),\"/\",\"!\")","v":"!"},"X"]
["R_09.00",{"$f":"IF(AND(HLOOKUP('General data'!$E$22,$C$1:$H$16,16,FALSE)=\"X\",Index!D20=\"Reported\"),\"/\",\"!\")","v":"!"},"X"]
["R_10.00",{"$f":"IF(AND(HLOOKUP('General data'!$E$22,$C$1:$H$17,17,FALSE)=\"X\",Index!D21=\"Reported\"),\"/\",\"!\")","v":"!"},"X"]
["R_11.00",{"$f":"IF(AND(HLOOKUP('General data'!$E$22,$C$1:$H$18,18,FALSE)=\"X\",Index!D22=\"Reported\"),\"/\",\"!\")","v":"!"},"X"]
["R_12.00",{"$f":"IF(AND(HLOOKUP('General data'!$E$22,$C$1:$H$19,19,FALSE)=\"X\",Index!D23=\"Reported\"),\"/\",\"!\")","v":"!"},"X"]
[]
[{"$f":"IF(Index!D6=\"Not Reported\",\"/R 01.00 Rows{Z}@ForceFilingCode:false\",\"\")","v":""},{"$f":"IF(Index!D6=\"Not Reported\",\"//R 01.00 Rows{Z}@ForceFilingCode:false\",\"\")","v":""}]
[{"$f":"IF(Index!D7=\"Not Reported\",\"/R 06.00.a Rows{Z}@ForceFilingCode:false\",\"\")","v":""},{"$f":"IF(Index!D7=\"Not Reported\",\"//R 06.00.a Rows{Z}@ForceFilingCode:false\",\"\")","v":""}]
[{"$f":"IF(Index!D7=\"Not Reported\",\"/R 06.00.b Rows{Z}@ForceFilingCode:false\",\"\")","v":""},{"$f":"IF(Index!D7=\"Not Reported\",\"//R 06.00.b Rows{Z}@ForceFilingCode:false\",\"\")","v":""}]
[{"$f":"IF(Index!D8=\"Not Reported\",\"/R 04.00.a Rows{Z}@ForceFilingCode:false\",\"\")","v":""},{"$f":"IF(Index!D8=\"Not Reported\",\"//R 04.00.a Rows{Z}@ForceFilingCode:false\",\"\")","v":""}]
[{"$f":"IF(Index!D8=\"Not Reported\",\"/R 04.00.b Rows{Z}@ForceFilingCode:false\",\"\")","v":""},{"$f":"IF(Index!D8=\"Not Reported\",\"//R 04.00.b Rows{Z}@ForceFilingCode:false\",\"\")","v":""}]
[{"$f":"IF(Index!D8=\"Not Reported\",\"/R 04.00.c Rows{Z}@ForceFilingCode:false\",\"\")","v":""},{"$f":"IF(Index!D8=\"Not Reported\",\"//R 04.00.c Rows{Z}@ForceFilingCode:false\",\"\")","v":""}]
[{"$f":"IF(Index!D9=\"Not Reported\",\"/R 08.00 Rows{Z}@ForceFilingCode:false\",\"\")","v":""},{"$f":"IF(Index!D9=\"Not Reported\",\"//R 08.00 Rows{Z}@ForceFilingCode:false\",\"\")","v":""}]
[{"$f":"IF(Index!D10=\"Not Reported\",\"/R 07.00 Rows{Z}@ForceFilingCode:false\",\"\")","v":""},{"$f":"IF(Index!D10=\"Not Reported\",\"//R 07.00 Rows{Z}@ForceFilingCode:false\",\"\")","v":""}]
[{"$f":"IF(Index!D11=\"Not Reported\",\"/R 01.01 Rows{Z}@ForceFilingCode:false\",\"\")","v":""},{"$f":"IF(Index!D11=\"Not Reported\",\"//R 01.01 Rows{Z}@ForceFilingCode:false\",\"\")","v":""}]
[{"$f":"IF(Index!D12=\"Not Reported\",\"/R 06.01.a Rows{Z}@ForceFilingCode:false\",\"\")","v":""},{"$f":"IF(Index!D12=\"Not Reported\",\"//R 06.01.a Rows{Z}@ForceFilingCode:false\",\"\")","v":""}]
[{"$f":"IF(Index!D12=\"Not Reported\",\"/R 06.01.b Rows{Z}@ForceFilingCode:false\",\"\")","v":""},{"$f":"IF(Index!D12=\"Not Reported\",\"//R 06.01.b Rows{Z}@ForceFilingCode:false\",\"\")","v":""}]
[{"$f":"IF(Index!D13=\"Not Reported\",\"/R 04.01.a Rows{Z}@ForceFilingCode:false\",\"\")","v":""},{"$f":"IF(Index!D13=\"Not Reported\",\"//R 04.01.a Rows{Z}@ForceFilingCode:false\",\"\")","v":""}]
[{"$f":"IF(Index!D13=\"Not Reported\",\"/R 04.01.b Rows{Z}@ForceFilingCode:false\",\"\")","v":""},{"$f":"IF(Index!D13=\"Not Reported\",\"//R 04.01.b Rows{Z}@ForceFilingCode:false\",\"\")","v":""}]
[{"$f":"IF(Index!D13=\"Not Reported\",\"/R 04.01.c Rows{Z}@ForceFilingCode:false\",\"\")","v":""},{"$f":"IF(Index!D13=\"Not Reported\",\"//R 04.01.c Rows{Z}@ForceFilingCode:false\",\"\")","v":""}]
[{"$f":"IF(Index!D14=\"Not Reported\",\"/R 02.00 Rows{Z}@ForceFilingCode:false\",\"\")","v":""},{"$f":"IF(Index!D14=\"Not Reported\",\"//R 02.00 Rows{Z}@ForceFilingCode:false\",\"\")","v":""}]
[{"$f":"IF(Index!D15=\"Not Reported\",\"/R 02.01 Rows{Z}@ForceFilingCode:false\",\"\")","v":""},{"$f":"IF(Index!D15=\"Not Reported\",\"//R 02.01 Rows{Z}@ForceFilingCode:false\",\"\")","v":""}]
[{"$f":"IF(Index!D16=\"Not Reported\",\"/R 02.02 Rows{Z}@ForceFilingCode:false\",\"\")","v":""},{"$f":"IF(Index!D16=\"Not Reported\",\"//R 02.02 Rows{Z}@ForceFilingCode:false\",\"\")","v":""}]
[{"$f":"IF(Index!D17=\"Not Reported\",\"/R 03.00 Rows{Z}@ForceFilingCode:false\",\"\")","v":""},{"$f":"IF(Index!D17=\"Not Reported\",\"//R 03.00 Rows{Z}@ForceFilingCode:false\",\"\")","v":""}]
[{"$f":"IF(Index!D18=\"Not Reported\",\"/R 05.00 Rows{Z}@ForceFilingCode:false\",\"\")","v":""},{"$f":"IF(Index!D18=\"Not Reported\",\"//R 05.00 Rows{Z}@ForceFilingCode:false\",\"\")","v":""}]
[{"$f":"IF(Index!D19=\"Not Reported\",\"/R 05.01 Rows{Z}@ForceFilingCode:false\",\"\")","v":""},{"$f":"IF(Index!D19=\"Not Reported\",\"//R 05.01 Rows{Z}@ForceFilingCode:false\",\"\")","v":""}]
[{"$f":"IF(Index!D20=\"Not Reported\",\"/R 09.00 Rows{Z}@ForceFilingCode:false\",\"\")","v":""},{"$f":"IF(Index!D20=\"Not Reported\",\"//R 09.00 Rows{Z}@ForceFilingCode:false\",\"\")","v":""}]
[{"$f":"IF(Index!D21=\"Not Reported\",\"/R 10.00 Rows{Z}@ForceFilingCode:false\",\"\")","v":""},{"$f":"IF(Index!D21=\"Not Reported\",\"//R 10.00 Rows{Z}@ForceFilingCode:false\",\"\")","v":""}]
[{"$f":"IF(Index!D22=\"Not Reported\",\"/R 11.00 Rows{Z}@ForceFilingCode:false\",\"\")","v":""},{"$f":"IF(Index!D22=\"Not Reported\",\"//R 11.00 Rows{Z}@ForceFilingCode:false\",\"\")","v":""}]
[{"$f":"IF(Index!D23=\"Not Reported\",\"/R 12.00.a Rows{Z}@ForceFilingCode:false\",\"\")","v":""},{"$f":"IF(Index!D23=\"Not Reported\",\"//R 12.00.a Rows{Z}@ForceFilingCode:false\",\"\")","v":""}]
[{"$f":"IF(Index!D23=\"Not Reported\",\"/R 12.00.b Rows{Z}@ForceFilingCode:false\",\"\")","v":""},{"$f":"IF(Index!D23=\"Not Reported\",\"//R 12.00.b Rows{Z}@ForceFilingCode:false\",\"\")","v":""}]

{"sheet":"Hierarchies","index":4,"n_rows":104,"n_cols":6,"rows_kept":104,"cut":false,"hidden":true,"merged":[]}
["hier_IA_IA1","hier_IA_IA1","hier_IA_IA2","hier_IA_IA2","hier_GA_GA9","hier_GA_GA9"]
[">= 1,000,000 and < 1 500,000",">= 1,000,000 and < 1 500,000",">= 1,000,000 and < 2,000,000",">= 1,000,000 and < 2,000,000","AUSTRIA","AUSTRIA"]
[">= 1,500,000 and < 2,000,000",">= 1,500,000 and < 2,000,000",">= 2,000,000 and < 3,000,000",">= 2,000,000 and < 3,000,000","BELGIUM","BELGIUM"]
[">= 2,000,000 and < 2,500,000",">= 2,000,000 and < 2,500,000",">= 3,000,000 and < 4,000,000",">= 3,000,000 and < 4,000,000","BULGARIA","BULGARIA"]
[">= 2,500,000 and < 3,000,000",">= 2,500,000 and < 3,000,000",">= 4,000,000 and < 5,000,000",">= 4,000,000 and < 5,000,000","CROATIA","CROATIA"]
[">= 3,000,000 and < 3,500,000",">= 3,000,000 and < 3,500,000",">= 5,000,000 and < 6,000,000",">= 5,000,000 and < 6,000,000","CYPRUS","CYPRUS"]
[">= 3,500,000 and < 4,000,000",">= 3,500,000 and < 4,000,000",">= 6,000,000 and < 7,000,000",">= 6,000,000 and < 7,000,000","CZECH REPUBLIC","CZECH REPUBLIC"]
[">= 4,000,000 and < 4,500,000",">= 4,000,000 and < 4,500,000",">= 7,000,000 and < 8,000,000",">= 7,000,000 and < 8,000,000","DENMARK","DENMARK"]
[">= 4,500,000 and < 5,000,000",">= 4,500,000 and < 5,000,000",">= 8,000,000 and < 9,000,000",">= 8,000,000 and < 9,000,000","ESTONIA","ESTONIA"]
[">= 5,000,000 and < 6,000,000",">= 5,000,000 and < 6,000,000",">= 9,000,000 and < 10,000,000",">= 9,000,000 and < 10,000,000","FINLAND","FINLAND"]
[">= 6,000,000 and < 7,000,000",">= 6,000,000 and < 7,000,000",">= 10,000,000 and < 11,000,000",">= 10,000,000 and < 11,000,000","FRANCE","FRANCE"]
[">= 7,000,000 and < 8,000,000",">= 7,000,000 and < 8,000,000",">= 11,000,000 and < 12,000,000",">= 11,000,000 and < 12,000,000","GERMANY","GERMANY"]
[">= 8,000,000 and < 9,000,000",">= 8,000,000 and < 9,000,000",">= 12,000,000 and < 13,000,000",">= 12,000,000 and < 13,000,000","GREECE","GREECE"]
[">= 9,000,000 and < 10,000,000",">= 9,000,000 and < 10,000,000",">= 13,000,000 and < 14,000,000",">= 13,000,000 and < 14,000,000","HUNGARY","HUNGARY"]
[">= 10,000,000 and < 11,000,000",">= 10,000,000 and < 11,000,000",">= 14,000,000 and < 15,000,000",">= 14,000,000 and < 15,000,000","ICELAND","ICELAND"]
[">= 11,000,000 and < 12,000,000",">= 11,000,000 and < 12,000,000",">= 15,000,000 and < 16,000,000",">= 15,000,000 and < 16,000,000","IRELAND","IRELAND"]
[">= 12,000,000 and < 13,000,000",">= 12,000,000 and < 13,000,000",">= 16,000,000 and < 17,000,000",">= 16,000,000 and < 17,000,000","ITALY","ITALY"]
[">= 13,000,000 and < 14,000,000",">= 13,000,000 and < 14,000,000",">= 17,000,000 and < 18,000,000",">= 17,000,000 and < 18,000,000","LATVIA","LATVIA"]
[">= 14,000,000 and < 15,000,000",">= 14,000,000 and < 15,000,000",">= 18,000,000 and < 19,000,000",">= 18,000,000 and < 19,000,000","LIECHTENSTEIN","LIECHTENSTEIN"]
[">= 15,000,000 and < 16,000,000",">= 15,000,000 and < 16,000,000",">= 19,000,000 and < 20,000,000",">= 19,000,000 and < 20,000,000","LITHUANIA","LITHUANIA"]
[">= 16,000,000 and < 17,000,000",">= 16,000,000 and < 17,000,000",">= 20,000,000 and < 21,000,000",">= 20,000,000 and < 21,000,000","LUXEMBOURG","LUXEMBOURG"]
[">= 17,000,000 and < 18,000,000",">= 17,000,000 and < 18,000,000",">= 21,000,000 and < 22,000,000",">= 21,000,000 and < 22,000,000","MALTA","MALTA"]
[">= 18,000,000 and < 19,000,000",">= 18,000,000 and < 19,000,000",">= 22,000,000 and < 23,000,000",">= 22,000,000 and < 23,000,000","NETHERLANDS","NETHERLANDS"]
[">= 19,000,000 and < 20,000,000",">= 19,000,000 and < 20,000,000",">= 23,000,000 and < 24,000,000",">= 23,000,000 and < 24,000,000","NORWAY","NORWAY"]
[">= 20,000,000 and < 21,000,000",">= 20,000,000 and < 21,000,000",">= 24,000,000 and < 25,000,000",">= 24,000,000 and < 25,000,000","POLAND","POLAND"]
[">= 21,000,000 and < 22,000,000",">= 21,000,000 and < 22,000,000",">= 25,000,000 and < 26,000,000",">= 25,000,000 and < 26,000,000","PORTUGAL","PORTUGAL"]
[">= 22,000,000 and < 23,000,000",">= 22,000,000 and < 23,000,000",">= 26,000,000 and < 27,000,000",">= 26,000,000 and < 27,000,000","ROMANIA","ROMANIA"]
[">= 23,000,000 and < 24,000,000",">= 23,000,000 and < 24,000,000",">= 27,000,000 and < 28,000,000",">= 27,000,000 and < 28,000,000","SLOVAKIA","SLOVAKIA"]
[">= 24,000,000 and < 25,000,000",">= 24,000,000 and < 25,000,000",">= 28,000,000 and < 29,000,000",">= 28,000,000 and < 29,000,000","SLOVENIA","SLOVENIA"]
[">= 25,000,000 and < 26,000,000",">= 25,000,000 and < 26,000,000",">= 29,000,000 and < 30,000,000",">= 29,000,000 and < 30,000,000","SPAIN","SPAIN"]
[">= 26,000,000 and < 27,000,000",">= 26,000,000 and < 27,000,000",">= 30,000,000 and < 31,000,000",">= 30,000,000 and < 31,000,000","SWEDEN","SWEDEN"]
[">= 27,000,000 and < 28,000,000",">= 27,000,000 and < 28,000,000",">= 31,000,000 and < 32,000,000",">= 31,000,000 and < 32,000,000","UNITED KINGDOM","UNITED KINGDOM"]
[">= 28,000,000 and < 29,000,000",">= 28,000,000 and < 29,000,000",">= 32,000,000 and < 33,000,000",">= 32,000,000 and < 33,000,000"]
[">= 29,000,000 and < 30,000,000",">= 29,000,000 and < 30,000,000",">= 33,000,000 and < 34,000,000",">= 33,000,000 and < 34,000,000"]
[">= 30,000,000 and < 31,000,000",">= 30,000,000 and < 31,000,000",">= 34,000,000 and < 35,000,000",">= 34,000,000 and < 35,000,000"]
[">= 31,000,000 and < 32,000,000",">= 31,000,000 and < 32,000,000",">= 35,000,000 and < 36,000,000",">= 35,000,000 and < 36,000,000"]
[">= 32,000,000 and < 33,000,000",">= 32,000,000 and < 33,000,000",">= 36,000,000 and < 37,000,000",">= 36,000,000 and < 37,000,000"]
[">= 33,000,000 and < 34,000,000",">= 33,000,000 and < 34,000,000",">= 37,000,000 and < 38,000,000",">= 37,000,000 and < 38,000,000"]
[">= 34,000,000 and < 35,000,000",">= 34,000,000 and < 35,000,000",">= 38,000,000 and < 39,000,000",">= 38,000,000 and < 39,000,000"]
[">= 35,000,000 and < 36,000,000",">= 35,000,000 and < 36,000,000",">= 39,000,000 and < 40,000,000",">= 39,000,000 and < 40,000,000"]
[">= 36,000,000 and < 37,000,000",">= 36,000,000 and < 37,000,000",">= 40,000,000 and < 41,000,000",">= 40,000,000 and < 41,000,000"]
[">= 37,000,000 and < 38,000,000",">= 37,000,000 and < 38,000,000",">= 41,000,000 and < 42,000,000",">= 41,000,000 and < 42,000,000"]
[">= 38,000,000 and < 39,000,000",">= 38,000,000 and < 39,000,000",">= 42,000,000 and < 43,000,000",">= 42,000,000 and < 43,000,000"]
[">= 39,000,000 and < 40,000,000",">= 39,000,000 and < 40,000,000",">= 43,000,000 and < 44,000,000",">= 43,000,000 and < 44,000,000"]
[">= 40,000,000 and < 41,000,000",">= 40,000,000 and < 41,000,000",">= 44,000,000 and < 45,000,000",">= 44,000,000 and < 45,000,000"]
[">= 41,000,000 and < 42,000,000",">= 41,000,000 and < 42,000,000",">= 45,000,000 and < 46,000,000",">= 45,000,000 and < 46,000,000"]
[">= 42,000,000 and < 43,000,000",">= 42,000,000 and < 43,000,000",">= 46,000,000 and < 47,000,000",">= 46,000,000 and < 47,000,000"]
[">= 43,000,000 and < 44,000,000",">= 43,000,000 and < 44,000,000",">= 47,000,000 and < 48,000,000",">= 47,000,000 and < 48,000,000"]
[">= 44,000,000 and < 45,000,000",">= 44,000,000 and < 45,000,000",">= 48,000,000 and < 49,000,000",">= 48,000,000 and < 49,000,000"]
[">= 45,000,000 and < 46,000,000",">= 45,000,000 and < 46,000,000",">= 49,000,000 and < 50,000,000",">= 49,000,000 and < 50,000,000"]
[">= 46,000,000 and < 47,000,000",">= 46,000,000 and < 47,000,000",">= 50,000,000 and < 51,000,000",">= 50,000,000 and < 51,000,000"]
[">= 47,000,000 and < 48,000,000",">= 47,000,000 and < 48,000,000",">= 51,000,000 and < 52,000,000",">= 51,000,000 and < 52,000,000"]
[">= 48,000,000 and < 49,000,000",">= 48,000,000 and < 49,000,000",">= 52,000,000 and < 53,000,000",">= 52,000,000 and < 53,000,000"]
[">= 49,000,000 and < 50,000,000",">= 49,000,000 and < 50,000,000",">= 53,000,000 and < 54,000,000",">= 53,000,000 and < 54,000,000"]
[">= 50,000,000 and < 51,000,000",">= 50,000,000 and < 51,000,000",">= 54,000,000 and < 55,000,000",">= 54,000,000 and < 55,000,000"]
[">= 51,000,000 and < 52,000,000",">= 51,000,000 and < 52,000,000",">= 55,000,000 and < 56,000,000",">= 55,000,000 and < 56,000,000"]
[">= 52,000,000 and < 53,000,000",">= 52,000,000 and < 53,000,000",">= 56,000,000 and < 57,000,000",">= 56,000,000 and < 57,000,000"]
[">= 53,000,000 and < 54,000,000",">= 53,000,000 and < 54,000,000",">= 57,000,000 and < 58,000,000",">= 57,000,000 and < 58,000,000"]
[">= 54,000,000 and < 55,000,000",">= 54,000,000 and < 55,000,000",">= 58,000,000 and < 59,000,000",">= 58,000,000 and < 59,000,000"]
[">= 55,000,000 and < 56,000,000",">= 55,000,000 and < 56,000,000",">= 59,000,000 and < 60,000,000",">= 59,000,000 and < 60,000,000"]
[">= 56,000,000 and < 57,000,000",">= 56,000,000 and < 57,000,000",">= 60,000,000 and < 61,000,000",">= 60,000,000 and < 61,000,000"]
[">= 57,000,000 and < 58,000,000",">= 57,000,000 and < 58,000,000",">= 61,000,000 and < 62,000,000",">= 61,000,000 and < 62,000,000"]
[">= 58,000,000 and < 59,000,000",">= 58,000,000 and < 59,000,000",">= 62,000,000 and < 63,000,000",">= 62,000,000 and < 63,000,000"]
[">= 59,000,000 and < 60,000,000",">= 59,000,000 and < 60,000,000",">= 63,000,000 and < 64,000,000",">= 63,000,000 and < 64,000,000"]
[">= 60,000,000 and < 61,000,000",">= 60,000,000 and < 61,000,000",">= 64,000,000 and < 65,000,000",">= 64,000,000 and < 65,000,000"]
[">= 61,000,000 and < 62,000,000",">= 61,000,000 and < 62,000,000",">= 65,000,000 and < 66,000,000",">= 65,000,000 and < 66,000,000"]
[">= 62,000,000 and < 63,000,000",">= 62,000,000 and < 63,000,000",">= 66,000,000 and < 67,000,000",">= 66,000,000 and < 67,000,000"]
[">= 63,000,000 and < 64,000,000",">= 63,000,000 and < 64,000,000",">= 67,000,000 and < 68,000,000",">= 67,000,000 and < 68,000,000"]
[">= 64,000,000 and < 65,000,000",">= 64,000,000 and < 65,000,000",">= 68,000,000 and < 69,000,000",">= 68,000,000 and < 69,000,000"]
[">= 65,000,000 and < 66,000,000",">= 65,000,000 and < 66,000,000",">= 69,000,000 and < 70,000,000",">= 69,000,000 and < 70,000,000"]
[">= 66,000,000 and < 67,000,000",">= 66,000,000 and < 67,000,000",">= 70,000,000 and < 71,000,000",">= 70,000,000 and < 71,000,000"]
[">= 67,000,000 and < 68,000,000",">= 67,000,000 and < 68,000,000",">= 71,000,000 and < 72,000,000",">= 71,000,000 and < 72,000,000"]
[">= 68,000,000 and < 69,000,000",">= 68,000,000 and < 69,000,000",">= 72,000,000 and < 73,000,000",">= 72,000,000 and < 73,000,000"]
[">= 69,000,000 and < 70,000,000",">= 69,000,000 and < 70,000,000",">= 73,000,000 and < 74,000,000",">= 73,000,000 and < 74,000,000"]
[">= 70,000,000 and < 71,000,000",">= 70,000,000 and < 71,000,000",">= 74,000,000 and < 75,000,000",">= 74,000,000 and < 75,000,000"]
[">= 71,000,000 and < 72,000,000",">= 71,000,000 and < 72,000,000",">= 75,000,000 and < 76,000,000",">= 75,000,000 and < 76,000,000"]
[">= 72,000,000 and < 73,000,000",">= 72,000,000 and < 73,000,000",">= 76,000,000 and < 77,000,000",">= 76,000,000 and < 77,000,000"]
[">= 73,000,000 and < 74,000,000",">= 73,000,000 and < 74,000,000",">= 77,000,000 and < 78,000,000",">= 77,000,000 and < 78,000,000"]
[">= 74,000,000 and < 75,000,000",">= 74,000,000 and < 75,000,000",">= 78,000,000 and < 79,000,000",">= 78,000,000 and < 79,000,000"]
[">= 75,000,000 and < 76,000,000",">= 75,000,000 and < 76,000,000",">= 79,000,000 and < 80,000,000",">= 79,000,000 and < 80,000,000"]
[">= 76,000,000 and < 77,000,000",">= 76,000,000 and < 77,000,000",">= 80,000,000 and < 81,000,000",">= 80,000,000 and < 81,000,000"]
[">= 77,000,000 and < 78,000,000",">= 77,000,000 and < 78,000,000",">= 81,000,000 and < 82,000,000",">= 81,000,000 and < 82,000,000"]
[">= 78,000,000 and < 79,000,000",">= 78,000,000 and < 79,000,000",">= 82,000,000 and < 83,000,000",">= 82,000,000 and < 83,000,000"]
[">= 79,000,000 and < 80,000,000",">= 79,000,000 and < 80,000,000",">= 83,000,000 and < 84,000,000",">= 83,000,000 and < 84,000,000"]
[">= 80,000,000 and < 81,000,000",">= 80,000,000 and < 81,000,000",">= 84,000,000 and < 85,000,000",">= 84,000,000 and < 85,000,000"]
[">= 81,000,000 and < 82,000,000",">= 81,000,000 and < 82,000,000",">= 85,000,000 and < 86,000,000",">= 85,000,000 and < 86,000,000"]
[">= 82,000,000 and < 83,000,000",">= 82,000,000 and < 83,000,000",">= 86,000,000 and < 87,000,000",">= 86,000,000 and < 87,000,000"]
[">= 83,000,000 and < 84,000,000",">= 83,000,000 and < 84,000,000",">= 87,000,000 and < 88,000,000",">= 87,000,000 and < 88,000,000"]
[">= 84,000,000 and < 85,000,000",">= 84,000,000 and < 85,000,000",">= 88,000,000 and < 89,000,000",">= 88,000,000 and < 89,000,000"]
[">= 85,000,000 and < 86,000,000",">= 85,000,000 and < 86,000,000",">= 89,000,000 and < 90,000,000",">= 89,000,000 and < 90,000,000"]
[">= 86,000,000 and < 87,000,000",">= 86,000,000 and < 87,000,000",">= 90,000,000 and < 91,000,000",">= 90,000,000 and < 91,000,000"]
[">= 87,000,000 and < 88,000,000",">= 87,000,000 and < 88,000,000",">= 91,000,000 and < 92,000,000",">= 91,000,000 and < 92,000,000"]
[">= 88,000,000 and < 89,000,000",">= 88,000,000 and < 89,000,000",">= 92,000,000 and < 93,000,000",">= 92,000,000 and < 93,000,000"]
[">= 89,000,000 and < 90,000,000",">= 89,000,000 and < 90,000,000",">= 93,000,000 and < 94,000,000",">= 93,000,000 and < 94,000,000"]
[">= 90,000,000 and < 91,000,000",">= 90,000,000 and < 91,000,000",">= 94,000,000 and < 95,000,000",">= 94,000,000 and < 95,000,000"]
[">= 91,000,000 and < 92,000,000",">= 91,000,000 and < 92,000,000",">= 95,000,000 and < 96,000,000",">= 95,000,000 and < 96,000,000"]
[">= 92,000,000 and < 93,000,000",">= 92,000,000 and < 93,000,000",">= 96,000,000 and < 97,000,000",">= 96,000,000 and < 97,000,000"]
[">= 93,000,000 and < 94,000,000",">= 93,000,000 and < 94,000,000",">= 97,000,000 and < 98,000,000",">= 97,000,000 and < 98,000,000"]
[">= 94,000,000 and < 95,000,000",">= 94,000,000 and < 95,000,000",">= 98,000,000 and < 99,000,000",">= 98,000,000 and < 99,000,000"]
[">= 95,000,000 and < 96,000,000",">= 95,000,000 and < 96,000,000",">= 99,000,000 and < 100,000,000",">= 99,000,000 and < 100,000,000"]
[">= 96,000,000 and < 97,000,000",">= 96,000,000 and < 97,000,000"]
[">= 97,000,000 and < 98,000,000",">= 97,000,000 and < 98,000,000"]
[">= 98,000,000 and < 99,000,000",">= 98,000,000 and < 99,000,000"]
[">= 99,000,000 and < 100,000,000",">= 99,000,000 and < 100,000,000"]

{"sheet":"R_01.00","index":5,"n_rows":23,"n_cols":19,"rows_kept":23,"cut":false,"hidden":false,"merged":[[10,10,11,10],[10,11,11,11],[10,12,11,12],[1,1,1,14],[4,1,4,11],[8,3,9,12],[10,3,11,3],[10,4,11,4],[10,5,11,5],[10,6,11,6],[10,7,11,7],[10,8,11,8],[10,9,11,9]]}
["Back to Index"]
[null,"Information on remuneration for all staff"]
[]
[]
[null,"R 01.00"]
[]
[]
[]
[null,null,null,"Columns"]
[]
[null,null,null,"MB Supervisory function","MB Management function","Investment banking","Retail banking","Asset management","Corporate functions","Independent control functions","All staff in subsidiaries subject to a specific remuneration framework","All other staff","Total"]
[]
[null,null,null,"0010","0020","0030","0040","0050","0060","0070","0071","0080","0090",null,null,null,null,{"$f":"Show!$B$2&\"R 01.00 Rows {\"&COLUMN($C$1)&\"}\"&Index!$E$6","v":"/R 01.00 Rows {3}"},{"$f":"Show!$B$2&\"R 01.00 Columns {\"&COLUMN($D$1)&\"}\"","v":"/R 01.00 Columns {4}"}]
[null,"Rows",""]
[null,"Does the institution benefit from the derogation under Article 94 (3)(a) of Directive 2013/36/EU on an institutional level?","0005"]
[null,"Number of members (Headcount)","0010"]
[null,"Total number of staff in FTE","0020"]
[null,"Total net profit in year N (EUR)","0030"]
[null,"Total dividends (or similar distributions) paid for year N (EUR)","0031"]
[null,"Total remuneration (EUR)","0040"]
[null,"Of which: variable remuneration (EUR)","0050"]
[null,"Of which: fixed remuneration (EUR)","0060"]
[null,null,null,null,null,null,null,null,null,null,null,null,null,null,null,null,null,{"$f":"Show!$B$2&Show!$B$2&\"R 01.00 Rows {\"&COLUMN($C$1)&\"}\"","v":"//R 01.00 Rows {3}"},{"$f":"Show!$B$2&Show!$B$2&\"R 01.00 Columns {\"&COLUMN($M$1)&\"}\"","v":"//R 01.00 Columns {13}"}]

{"sheet":"R_06.00","index":6,"n_rows":33,"n_cols":19,"rows_kept":33,"cut":false,"hidden":true,"merged":[[23,3,23,6],[23,7,23,10],[1,1,1,14],[4,1,4,11],[8,3,9,3],[17,1,17,11],[21,3,22,10]]}
["Back to Index"]
[null,"Information on the gender pay gap"]
[]
[]
[null,"R 06.00.a"]
[]
[]
[]
[null,null,null,"Columns"]
[]
[null,null,null,"Headcount"]
[null,null,null,"0010",null,null,null,null,null,null,null,null,null,null,null,null,null,{"$f":"Show!$B$3&\"R 06.00.a Rows {\"&COLUMN($C$1)&\"}\"&Index!$E$7","v":"!R 06.00.a Rows {3}"},{"$f":"Show!$B$3&\"R 06.00.a Columns {\"&COLUMN($D$1)&\"}\"","v":"!R 06.00.a Columns {4}"}]
[null,"Rows",""]
[null,"Total number of staff","0010"]
[null,"Total number identified staff","0020"]
[null,null,null,null,null,null,null,null,null,null,null,null,null,null,null,null,null,{"$f":"Show!$B$3&Show!$B$3&\"R 06.00.a Rows {\"&COLUMN($C$1)&\"}\"","v":"!!R 06.00.a Rows {3}"},{"$f":"Show!$B$3&Show!$B$3&\"R 06.00.a Columns {\"&COLUMN($D$1)&\"}\"","v":"!!R 06.00.a Columns {4}"}]
[]
[null,"R 06.00.b"]
[]
[]
[]
[null,null,null,"Columns"]
[]
[null,null,null,"Representation of staff of different genders per quartile of remuneration level",null,null,null,"Gender pay gap based on the total gross remuneration"]
[null,null,null,"All male staff in percent of all staff","All female staff in percent of all staff","All male identified staff in percent based on all identified staff","All female identified staff in percent based on all identified staff","Gender pay gap of all staff, based on median","Gender pay gap of all staff, based on mean","Gender pay gap of identified staff, based on median","Gender pay gap of identified staff based on mean"]
[null,null,null,"0020","0030","0040","0050","0060","0070","0080","0090",null,null,null,null,null,null,{"$f":"Show!$B$3&\"R 06.00.b Rows {\"&COLUMN($C$1)&\"}\"&Index!$E$7","v":"!R 06.00.b Rows {3}"},{"$f":"Show!$B$3&\"R 06.00.b Columns {\"&COLUMN($D$1)&\"}\"","v":"!R 06.00.b Columns {4}"}]
[null,"Rows",""]
[null,"Quartile 1 (low)","0010"]
[null,"Quartile 2 (low to medium)","0020"]
[null,"Quartile 3 (medium to high)","0030"]
[null,"Quartile 4 (high)","0040"]
[null,"Total staff/identified staff","0050"]
[null,null,null,null,null,null,null,null,null,null,null,null,null,null,null,null,null,{"$f":"Show!$B$3&Show!$B$3&\"R 06.00.b Rows {\"&COLUMN($C$1)&\"}\"","v":"!!R 06.00.b Rows {3}"},{"$f":"Show!$B$3&Show!$B$3&\"R 06.00.b Columns {\"&COLUMN($K$1)&\"}\"","v":"!!R 06.00.b Columns {11}"}]

{"sheet":"R_04.00","index":7,"n_rows":84,"n_cols":18,"rows_kept":84,"cut":false,"hidden":true,"merged":[[1,1,1,14],[4,1,4,11],[6,1,6,2],[7,1,7,2],[10,3,11,11],[77,3,78,11],[12,8,14,8],[12,9,14,9],[12,10,14,10],[12,11,14,11],[57,1,57,11],[59,1,59,2],[12,3,14,3],[12,4,14,4],[12,5,14,5],[12,6,14,6],[12,7,14,7],[60,1,60,2],[63,3,64,10],[71,1,71,11],[73,1,73,2],[74,1,74,2]]}
["Back to Index"]
[null,"Information on the remuneration of high earners"]
[]
[]
[null,"R 04.00.a"]
[]
[null,"Payment band",null,null,null,null,null,null,null,null,null,null,null,null,null,null,{"$f":"Show!$B$4&\"R 04.00.a Table {\"&COLUMN($B$1)&\"}\"","v":"!R 04.00.a Table {2}"}]
[null,"EEA state in which high earner is located",null,null,null,null,null,null,null,null,null,null,null,null,null,null,{"$f":"Show!$B$4&Show!$B$4&\"R 04.00.a Table {\"&COLUMN($D$1)&\"}\"","v":"!!R 04.00.a Table {4}"}]
[]
[]
[null,null,null,"Columns"]
[]
[null,null,null,"MB Supervisory function","MB Management function","Investment banking","Retail banking","Asset management","Corporate functions","Independent control functions","All other high earners","All high earners in investment firms that are subject to Article 25 and 34 of Directive 2019/2034"]
[]
[]
[null,null,null,"0010","0020","0030","0040","0050","0060","0070","0080","0090",null,null,null,null,{"$f":"Show!$B$4&\"R 04.00.a Rows {\"&COLUMN($C$1)&\"}\"&Index!$E$8","v":"!R 04.00.a Rows {3}"},{"$f":"Show!$B$4&\"R 04.00.a Columns {\"&COLUMN($D$1)&\"}\"","v":"!R 04.00.a Columns {4}"}]
[null,"Rows",""]
[null,"Number of individuals in control functions","0020"]
[null,"Number of other staff","0030"]
[null,"Total number of high earners","0040"]
[null,"Of which: number of male high earners","0041"]
[null,"Of which: number of female high earners","0042"]
[null,"Of which: number of high earners that have a different gender than the male or female gender","0043"]
[null,"Of which: Number of high earners (included in row 4) in subsidiaries that are subject to a specific remuneration framework under other union legal acts in accordance with Article 109(4) of Directive 2013/36/EU","0055"]
[null,"Total fixed remuneration of all high earners (in EUR)","0060"]
[null,"Of which: cash-based","0070"]
[null,"Of which: shares or equivalent ownership interests","0080"]
[null,"Of which: share-linked instruments or equivalent non-cash instruments","0081"]
[null,"Of which: other instruments","0090"]
[null,"Of which: other forms","0091"]
[null,"Total variable remuneration of all high earners (in EUR)","0100"]
[null,"Of which: cash-based","0110"]
[null,"Of which: deferred","0111"]
[null,"Of which: shares or equivalent ownership interests","0120"]
[null,"Of which: deferred","0121"]
[null,"Of which: share-linked instruments or equivalent non-cash instruments","0122"]
[null,"Of which: deferred","0123"]
[null,"Of which: other instruments","0130"]
[null,"Of which: deferred","0131"]
[null,"Of which: other forms","0132"]
[null,"Of which: deferred","0133"]
[null,"Additional information on the above positions (all the amounts below should also be included in total variable remuneration or total fixed remuneration respectively)","0180"]
[null,"Guaranteed variable remuneration awards – number of high earners","0181"]
[null,"Guaranteed variable remuneration awards – Total amount","0182"]
[null,"Of which: guaranteed variable remuneration awards, awarded to identified staff for the financial year, that are not taken into account in the bonus cap","0183"]
[null,"Severance payments awarded during the financial year – Number of high earners","0190"]
[null,"Severance payments awarded during the financial year - Total amount","0200"]
[null,"Of which severance payments awarded for the financial year to identified staff, that are not taken into account in the bonus cap","0201"]
[null,"Number of beneficiaries of contributions to discretionary pension benefits in year N","0205"]
[null,"Total amount of contributions to  discretionary pension benefits in year N (in EUR)","0210"]
[null,"Total amount of variable remuneration awarded for multi- year periods under programmes which are not revolved annually (in EUR)","0220"]
[null,"For institutions that benefit from a derogation at an institutional level \r\nNumber of high earners benefitting from the derogations under Article 94 (3) (a) of Directive 2013/36/EU","0240"]
[null,"For institutions that benefit from a derogation at an institutional level \r\nVariable remuneration of individual high earners that are identified staff in institutions benefitting from the derogations under Article 94 (3) (a) of Directive 2013/36/EU","0250"]
[null,"Total amount of variable remuneration of high earners that are not identified staff","0260"]
[null,"Total amount of fixed remuneration of high earners that are not identified staff","0270"]
[null,null,null,null,null,null,null,null,null,null,null,null,null,null,null,null,{"$f":"Show!$B$4&Show!$B$4&\"R 04.00.a Rows {\"&COLUMN($C$1)&\"}\"","v":"!!R 04.00.a Rows {3}"},{"$f":"Show!$B$4&Show!$B$4&\"R 04.00.a Columns {\"&COLUMN($L$1)&\"}\"","v":"!!R 04.00.a Columns {12}"}]
[]
[null,"R 04.00.b"]
[]
[null,"Payment band",null,null,null,null,null,null,null,null,null,null,null,null,null,null,{"$f":"Show!$B$4&\"R 04.00.b Table {\"&COLUMN($B$1)&\"}\"","v":"!R 04.00.b Table {2}"}]
[null,"EEA state in which high earner is located",null,null,null,null,null,null,null,null,null,null,null,null,null,null,{"$f":"Show!$B$4&Show!$B$4&\"R 04.00.b Table {\"&COLUMN($D$1)&\"}\"","v":"!!R 04.00.b Table {4}"}]
[]
[]
[null,null,null,"Columns"]
[]
[null,null,null,"MB Management function","Investment banking","Retail banking","Asset management","Corporate functions","Independent control functions","All other high earners","All high earners in investment firms that are subject to Article 25 and 34 of Directive 2019/2034"]
[null,null,null,"0020","0030","0040","0050","0060","0070","0080","0090",null,null,null,null,null,{"$f":"Show!$B$4&\"R 04.00.b Rows {\"&COLUMN($C$1)&\"}\"&Index!$E$8","v":"!R 04.00.b Rows {3}"},{"$f":"Show!$B$4&\"R 04.00.b Columns {\"&COLUMN($D$1)&\"}\"","v":"!R 04.00.b Columns {4}"}]
[null,"Rows",""]
[null,"Number of individuals in senior management","0010"]
[null,null,null,null,null,null,null,null,null,null,null,null,null,null,null,null,{"$f":"Show!$B$4&Show!$B$4&\"R 04.00.b Rows {\"&COLUMN($C$1)&\"}\"","v":"!!R 04.00.b Rows {3}"},{"$f":"Show!$B$4&Show!$B$4&\"R 04.00.b Columns {\"&COLUMN($K$1)&\"}\"","v":"!!R 04.00.b Columns {11}"}]
[]
[null,"R 04.00.c"]
[]
[null,"Payment band",null,null,null,null,null,null,null,null,null,null,null,null,null,null,{"$f":"Show!$B$4&\"R 04.00.c Table {\"&COLUMN($B$1)&\"}\"","v":"!R 04.00.c Table {2}"}]
[null,"EEA state in which high earner is located",null,null,null,null,null,null,null,null,null,null,null,null,null,null,{"$f":"Show!$B$4&Show!$B$4&\"R 04.00.c Table {\"&COLUMN($D$1)&\"}\"","v":"!!R 04.00.c Table {4}"}]
[]
[]
[null,null,null,"Columns"]
[]
[null,null,null,"MB Supervisory function","MB Management function","Investment banking","Retail banking","Asset management","Corporate functions","Independent control functions","All other high earners","All high earners in investment firms that are subject to Article 25 and 34 of Directive 2019/2034"]
[null,null,null,"0010","0020","0030","0040","0050","0060","0070","0080","0090",null,null,null,null,{"$f":"Show!$B$4&\"R 04.00.c Rows {\"&COLUMN($C$1)&\"}\"&Index!$E$8","v":"!R 04.00.c Rows {3}"},{"$f":"Show!$B$4&\"R 04.00.c Columns {\"&COLUMN($D$1)&\"}\"","v":"!R 04.00.c Columns {4}"}]
[null,"Rows",""]
[null,"Of which: ‘identified staff’(included in row 4)","0050"]
[null,null,null,null,null,null,null,null,null,null,null,null,null,null,null,null,{"$f":"Show!$B$4&Show!$B$4&\"R 04.00.c Rows {\"&COLUMN($C$1)&\"}\"","v":"!!R 04.00.c Rows {3}"},{"$f":"Show!$B$4&Show!$B$4&\"R 04.00.c Columns {\"&COLUMN($L$1)&\"}\"","v":"!!R 04.00.c Columns {12}"}]

{"sheet":"R_08.00","index":8,"n_rows":29,"n_cols":10,"rows_kept":29,"cut":false,"hidden":true,"merged":[[1,1,1,14],[4,1,4,11],[8,3,9,3],[10,3,11,3]]}
["Back to Index"]
[null,"Approved higher ratios between variable and fixed remuneration – aggregation by competent authorities"]
[]
[]
[null,"R 08.00"]
[]
[]
[]
[null,null,null,"Columns"]
[]
[null,null,null,"Aggregation by competent authority"]
[]
[null,null,null,"0010",null,null,null,null,{"$f":"Show!$B$5&\"R 08.00 Rows {\"&COLUMN($C$1)&\"}\"&Index!$E$9","v":"!R 08.00 Rows {3}"},{"$f":"Show!$B$5&\"R 08.00 Columns {\"&COLUMN($D$1)&\"}\"","v":"!R 08.00 Columns {4}"}]
[null,"Rows",""]
[null,"Total number of institutions that have their legal seat within the Member State (additional information to be provided below) – e.g. derived from banking statistics","0010"]
[null,"Aggregated total number of staff of all institutions within the Member State","0020"]
[null,"Aggregated total number of identified staff of institutions within the Member State(where available, otherwise N/A)","0030"]
[null,"Aggregated balance sheet total of institutions within the Member State","0040"]
[null,"Number of institutions where shareholders have approved a higher ratio that have their legal seat within the Member State (additional information to be provided below)","0050"]
[null,"Thereof: number of institutions with their legal seat within the Member State that have approved 200% as the maximum ratio","0060"]
[null,"Aggregated total number of staff of these institutions","0070"]
[null,"Aggregated total number of identified staff of these institutions","0080"]
[null,"Aggregated balance sheet total of these institutions","0090"]
[null,"Aggregated total number of identified staff potentially benefitting from an approved ratio above 100%","0100"]
[null,"Aggregated total number of identified staff that has been in fact awarded a remuneration that leads to a ratio of variable to fixed remuneration above 100% for the financial year","0110"]
[null,"Changes versus the previous data submission","0120"]
[null,"Number of institutions that have introduced a higher ratio after the last submission of data to the EBA (re-approvals should not be reported)","0130"]
[null,"Number of institutions that have discontinued the practice of higher ratio after the last submission of data to the EBA","0140"]
[null,null,null,null,null,null,null,null,{"$f":"Show!$B$5&Show!$B$5&\"R 08.00 Rows {\"&COLUMN($C$1)&\"}\"","v":"!!R 08.00 Rows {3}"},{"$f":"Show!$B$5&Show!$B$5&\"R 08.00 Columns {\"&COLUMN($D$1)&\"}\"","v":"!!R 08.00 Columns {4}"}]

{"sheet":"R_07.00","index":9,"n_rows":21,"n_cols":10,"rows_kept":21,"cut":false,"hidden":true,"merged":[[1,1,1,14],[4,1,4,11],[8,3,9,3]]}
["Back to Index"]
[null,"Approved higher ratios between variable and fixed remuneration – institutions"]
[]
[]
[null,"R 07.00"]
[]
[]
[]
[null,null,null,"Columns"]
[]
[null,null,null,"Value"]
[null,null,null,"0010",null,null,null,null,{"$f":"Show!$B$6&\"R 07.00 Rows {\"&COLUMN($C$1)&\"}\"&Index!$E$10","v":"!R 07.00 Rows {3}"},{"$f":"Show!$B$6&\"R 07.00 Columns {\"&COLUMN($D$1)&\"}\"","v":"!R 07.00 Columns {4}"}]
[null,"Rows",""]
[null,"Total number of staff (end of the financial year)","0010"]
[null,"Total number of identified staff (outcome of the yearly identification process)","0020"]
[null,"Balance sheet total (end of the financial year)","0030"]
[null,"Approved higher ratio (i.e. ratio of variable to fixed remuneration which is above 100%)","0040"]
[null,"Date of latest approval of higher ratio by the shareholders’ meeting","0050"]
[null,"Total number of identified staff potentially benefitting from an approved ratio above 100%","0060"]
[null,"Total number of identified staff that has been in fact awarded a remuneration that leads to a ratio of variable to fixed remuneration above 100% for the financial year","0070"]
[null,null,null,null,null,null,null,null,{"$f":"Show!$B$6&Show!$B$6&\"R 07.00 Rows {\"&COLUMN($C$1)&\"}\"","v":"!!R 07.00 Rows {3}"},{"$f":"Show!$B$6&Show!$B$6&\"R 07.00 Columns {\"&COLUMN($D$1)&\"}\"","v":"!!R 07.00 Columns {4}"}]

{"sheet":"R_01.01","index":10,"n_rows":25,"n_cols":18,"rows_kept":25,"cut":false,"hidden":true,"merged":[[10,10,11,10],[10,11,11,11],[1,1,1,14],[4,1,4,11],[8,3,9,11],[10,3,11,3],[10,4,11,4],[10,5,11,5],[10,6,11,6],[10,7,11,7],[10,8,11,8],[10,9,11,9]]}
["Back to Index"]
[null,"General information and information on remuneration for all staff in investment firms"]
[]
[]
[null,"R 01.01"]
[]
[]
[]
[null,null,null,"Columns"]
[]
[null,null,null,"MB Supervisory function","MB Management function","Dealing on own account, underwriting and placing of instruments","Investment advice, order execution","Portfolio management","Operation of MTF/OTF","Independent control functions","All other staff","Total"]
[]
[null,null,null,"0010","0020","0030","0040","0050","0060","0070","0080","0090",null,null,null,null,{"$f":"Show!$B$7&\"R 01.01 Rows {\"&COLUMN($C$1)&\"}\"&Index!$E$11","v":"!R 01.01 Rows {3}"},{"$f":"Show!$B$7&\"R 01.01 Columns {\"&COLUMN($D$1)&\"}\"","v":"!R 01.01 Columns {4}"}]
[null,"Rows",""]
[null,"Number of members (Headcount)","0010"]
[null,"Total number of staff in FTE","0020"]
[null,"Total net profit in year N (in EUR)","0030"]
[null,"Total dividends (or similar distributions) paid for year N (in EUR)","0031"]
[null,"Total remuneration (in EUR)","0040"]
[null,"Of which: variable remuneration (in EUR)","0050"]
[null,"Of which: fixed remuneration (in EUR)","0060"]
[null,"Maximum ratio between the variable and fixed remuneration for identified staff set in the investment firm internal policy","0070"]
[null,"The investment firm benefits from the waiver under Article 32(4)(a) IFD on an institutional level?","0080"]
[null,"The investment firm is a subsidiary of an EU parent institution that is subject to Directive 2013/36/EU","0090"]
[null,null,null,null,null,null,null,null,null,null,null,null,null,null,null,null,{"$f":"Show!$B$7&Show!$B$7&\"R 01.01 Rows {\"&COLUMN($C$1)&\"}\"","v":"!!R 01.01 Rows {3}"},{"$f":"Show!$B$7&Show!$B$7&\"R 01.01 Columns {\"&COLUMN($L$1)&\"}\"","v":"!!R 01.01 Columns {12}"}]

{"sheet":"R_06.01","index":11,"n_rows":33,"n_cols":19,"rows_kept":33,"cut":false,"hidden":true,"merged":[[23,3,23,6],[23,7,23,10],[1,1,1,14],[4,1,4,11],[8,3,9,3],[17,1,17,11],[21,3,22,10]]}
["Back to Index"]
[null,"Information on the gender pay gap for IF"]
[]
[]
[null,"R 06.01.a"]
[]
[]
[]
[null,null,null,"Columns"]
[]
[null,null,null,"Headcount"]
[null,null,null,"0010",null,null,null,null,null,null,null,null,null,null,null,null,null,{"$f":"Show!$B$8&\"R 06.01.a Rows {\"&COLUMN($C$1)&\"}\"&Index!$E$12","v":"!R 06.01.a Rows {3}"},{"$f":"Show!$B$8&\"R 06.01.a Columns {\"&COLUMN($D$1)&\"}\"","v":"!R 06.01.a Columns {4}"}]
[null,"Rows",""]
[null,"Total number of staff","0010"]
[null,"Total number identified staff","0020"]
[null,null,null,null,null,null,null,null,null,null,null,null,null,null,null,null,null,{"$f":"Show!$B$8&Show!$B$8&\"R 06.01.a Rows {\"&COLUMN($C$1)&\"}\"","v":"!!R 06.01.a Rows {3}"},{"$f":"Show!$B$8&Show!$B$8&\"R 06.01.a Columns {\"&COLUMN($D$1)&\"}\"","v":"!!R 06.01.a Columns {4}"}]
[]
[null,"R 06.01.b"]
[]
[]
[]
[null,null,null,"Columns"]
[]
[null,null,null,"Representation of staff of different genders per quartile of remuneration level",null,null,null,"Gender pay gap based on the total gross remuneration"]
[null,null,null,"All male staff in percent of all staff","All female staff in percent of all staff","All male identified staff in percent based on all identified staff","All female identified staff in percent based on all identified staff","Gender pay gap of all staff, based on median","Gender pay gap of all staff, based on mean","Gender pay gap of identified staff, based on median","Gender pay gap of identified staff based on mean"]
[null,null,null,"0020","0030","0040","0050","0060","0070","0080","0090",null,null,null,null,null,null,{"$f":"Show!$B$8&\"R 06.01.b Rows {\"&COLUMN($C$1)&\"}\"&Index!$E$12","v":"!R 06.01.b Rows {3}"},{"$f":"Show!$B$8&\"R 06.01.b Columns {\"&COLUMN($D$1)&\"}\"","v":"!R 06.01.b Columns {4}"}]
[null,"Rows",""]
[null,"Quartile 1 (low)","0030"]
[null,"Quartile 2 (low to medium)","0040"]
[null,"Quartile 3 (medium to high)","0050"]
[null,"Quartile 4 (high)","0060"]
[null,"Total staff/identified staff","0070"]
[null,null,null,null,null,null,null,null,null,null,null,null,null,null,null,null,null,{"$f":"Show!$B$8&Show!$B$8&\"R 06.01.b Rows {\"&COLUMN($C$1)&\"}\"","v":"!!R 06.01.b Rows {3}"},{"$f":"Show!$B$8&Show!$B$8&\"R 06.01.b Columns {\"&COLUMN($K$1)&\"}\"","v":"!!R 06.01.b Columns {11}"}]

{"sheet":"R_04.01","index":12,"n_rows":87,"n_cols":17,"rows_kept":87,"cut":false,"hidden":true,"merged":[[63,1,63,2],[1,1,1,14],[4,1,4,11],[6,1,6,2],[7,1,7,2],[10,3,11,10],[12,3,14,3],[12,4,14,4],[12,5,14,5],[12,6,14,6],[12,7,14,7],[12,8,14,8],[12,9,14,9],[12,10,14,10],[60,1,60,11],[62,1,62,2],[66,3,67,9],[74,1,74,11],[76,1,76,2],[77,1,77,2],[80,3,81,10]]}
["Back to Index"]
[null,"Information on the remuneration of high earners - IFD"]
[]
[]
[null,"R 04.01.a"]
[]
[null,"Payment band",null,null,null,null,null,null,null,null,null,null,null,null,null,{"$f":"Show!$B$9&\"R 04.01.a Table {\"&COLUMN($B$1)&\"}\"","v":"!R 04.01.a Table {2}"},{"$f":"Show!$B$9&Show!$B$9&\"R 04.01.a Table {\"&COLUMN($D$1)&\"}\"","v":"!!R 04.01.a Table {4}"}]
[null,"EEA state in which high earner is located"]
[]
[]
[null,null,null,"Columns"]
[]
[null,null,null,"MB Supervisory function","MB Management function","Dealing on own account, underwriting and placing of instruments","Investment advice, order execution","Portfolio management","Operation of MTF/OTF","Independent control functions","All other staff"]
[]
[]
[null,null,null,"0010","0020","0030","0040","0050","0060","0070","0080",null,null,null,null,{"$f":"Show!$B$9&\"R 04.01.a Rows {\"&COLUMN($C$1)&\"}\"&Index!$E$13","v":"!R 04.01.a Rows {3}"},{"$f":"Show!$B$9&\"R 04.01.a Columns {\"&COLUMN($D$1)&\"}\"","v":"!R 04.01.a Columns {4}"}]
[null,"Rows",""]
[null,"Number of individuals in control functions","0020"]
[null,"Number of other staff","0030"]
[null,"Total number of high earners","0040"]
[null,"Of which: number of male high earners","0041"]
[null,"Of which: number of female high earners","0042"]
[null,"Of which: number of high earners that have a different gender than the male or female gender","0043"]
[null,"Total fixed remuneration (in EUR) in year N of all high earners","0060"]
[null,"Of which: cash-based","0070"]
[null,"Of which: shares or equivalent ownership interests","0080"]
[null,"Of which: share-linked instruments or equivalent non-cash instruments","0090"]
[null,"Of which: other types of instruments under Article 32(1)(j)(iii) Directive (EU) 2019/2034","0100"]
[null,"Of which: non-cash instruments which reflect the instruments of the portfolios managed","0110"]
[null,"Of which: approved alternative arrangements","0120"]
[null,"Of which: other forms","0130"]
[null,"Total variable remuneration (in EUR) in year N of all high earners","0140"]
[null,"Of which: cash-based","0150"]
[null,"Of which: deferred","0160"]
[null,"Of which: shares or equivalent ownership interests","0170"]
[null,"Of which: deferred","0180"]
[null,"Of which: share-linked instruments or equivalent non-cash instruments","0190"]
[null,"Of which: deferred","0200"]
[null,"Of which: other types of instruments under of Article 32(1)(j)(iii) of Directive (EU) 2019/2034","0210"]
[null,"Of which: deferred","0220"]
[null,"Of which: non-cash instruments which reflect the instruments of the portfolios managed","0230"]
[null,"Of which: deferred","0240"]
[null,"Of which: approved alternative arrangements","0250"]
[null,"Of which: deferred","0260"]
[null,"Of which: other forms","0270"]
[null,"Of which: deferred","0280"]
[null,"Additional information regarding the above positions (all the amounts below should be included also in total variable remuneration)","0310"]
[null,"Guaranteed variable remuneration awards – number of high earners","0320"]
[null,"Guaranteed variable remuneration awards – Total amount","0330"]
[null,"Severance payments awarded during the financial year – Number of high earners","0340"]
[null,"Severance payments awarded during the financial year - Total amount","0350"]
[null,"Number of beneficiaries of contributions to discretionary pension benefits in year N","0360"]
[null,"Total amount of contributions to  discretionary pension benefits in year N (in EUR)","0370"]
[null,"Total amount of variable remuneration awarded for multi- year periods under programmes which are not revolved annually (in EUR)","0380"]
[null,"For investment firms that benefit from a derogation at an institutional level \r\nNumber of high earners benefitting from the derogations under Article 32(4)(a) of Directive (EU) 2019/2034","0390"]
[null,"For investment firms that benefit from a derogation at an institutional level \r\nThereof variable remuneration of high earners that are identified staff, where the investment firm is benefitting from the derogations under Article 32(4)(a) of Directive (EU)","0400"]
[null,"Total amount of variable remuneration of high earners that are not identified staff","0410"]
[null,"Total amount of fixed remuneration of high earners that are not identified staff","0420"]
[null,null,null,null,null,null,null,null,null,null,null,null,null,null,null,{"$f":"Show!$B$9&Show!$B$9&\"R 04.01.a Rows {\"&COLUMN($C$1)&\"}\"","v":"!!R 04.01.a Rows {3}"},{"$f":"Show!$B$9&Show!$B$9&\"R 04.01.a Columns {\"&COLUMN($K$1)&\"}\"","v":"!!R 04.01.a Columns {11}"}]
[]
[null,"R 04.01.b"]
[]
[null,"Payment band",null,null,null,null,null,null,null,null,null,null,null,null,null,{"$f":"Show!$B$9&\"R 04.01.b Table {\"&COLUMN($B$1)&\"}\"","v":"!R 04.01.b Table {2}"},{"$f":"Show!$B$9&Show!$B$9&\"R 04.01.b Table {\"&COLUMN($D$1)&\"}\"","v":"!!R 04.01.b Table {4}"}]
[null,"EEA state in which high earner is located"]
[]
[]
[null,null,null,"Columns"]
[]
[null,null,null,"MB Management function","Dealing on own account, underwriting and placing of instruments","Investment advice, order execution","Portfolio management","Operation of MTF/OTF","Independent control functions","All other staff"]
[null,null,null,"0020","0030","0040","0050","0060","0070","0080",null,null,null,null,null,{"$f":"Show!$B$9&\"R 04.01.b Rows {\"&COLUMN($C$1)&\"}\"&Index!$E$13","v":"!R 04.01.b Rows {3}"},{"$f":"Show!$B$9&\"R 04.01.b Columns {\"&COLUMN($D$1)&\"}\"","v":"!R 04.01.b Columns {4}"}]
[null,"Rows",""]
[null,"Number of individuals in senior management","0010"]
[null,null,null,null,null,null,null,null,null,null,null,null,null,null,null,{"$f":"Show!$B$9&Show!$B$9&\"R 04.01.b Rows {\"&COLUMN($C$1)&\"}\"","v":"!!R 04.01.b Rows {3}"},{"$f":"Show!$B$9&Show!$B$9&\"R 04.01.b Columns {\"&COLUMN($J$1)&\"}\"","v":"!!R 04.01.b Columns {10}"}]
[]
[null,"R 04.01.c"]
[]
[null,"Payment band",null,null,null,null,null,null,null,null,null,null,null,null,null,{"$f":"Show!$B$9&\"R 04.01.c Table {\"&COLUMN($B$1)&\"}\"","v":"!R 04.01.c Table {2}"},{"$f":"Show!$B$9&Show!$B$9&\"R 04.01.c Table {\"&COLUMN($D$1)&\"}\"","v":"!!R 04.01.c Table {4}"}]
[null,"EEA state in which high earner is located"]
[]
[]
[null,null,null,"Columns"]
[]
[null,null,null,"MB Supervisory function","MB Management function","Dealing on own account, underwriting and placing of instruments","Investment advice, order execution","Portfolio management","Operation of MTF/OTF","Independent control functions","All other staff"]
[null,null,null,"0010","0020","0030","0040","0050","0060","0070","0080",null,null,null,null,{"$f":"Show!$B$9&\"R 04.01.c Rows {\"&COLUMN($C$1)&\"}\"&Index!$E$13","v":"!R 04.01.c Rows {3}"},{"$f":"Show!$B$9&\"R 04.01.c Columns {\"&COLUMN($D$1)&\"}\"","v":"!R 04.01.c Columns {4}"}]
[null,"Rows",""]
[null,"Of which: ‘identified staff’","0050"]
[null,null,null,null,null,null,null,null,null,null,null,null,null,null,null,{"$f":"Show!$B$9&Show!$B$9&\"R 04.01.c Rows {\"&COLUMN($C$1)&\"}\"","v":"!!R 04.01.c Rows {3}"},{"$f":"Show!$B$9&Show!$B$9&\"R 04.01.c Columns {\"&COLUMN($K$1)&\"}\"","v":"!!R 04.01.c Columns {11}"}]

{"sheet":"R_02.00","index":13,"n_rows":19,"n_cols":13,"rows_kept":19,"cut":false,"hidden":true,"merged":[[1,1,1,14],[4,1,4,11],[8,3,9,6]]}
["Back to Index"]
[null,"Information on remuneration of identified staff"]
[]
[]
[null,"R 02.00"]
[]
[]
[]
[null,null,null,"Columns"]
[]
[null,null,null,"MB Supervisory function","MB Management function","Other senior management","Other identified staff"]
[null,null,null,"0010","0020","0090","0100",null,null,null,null,{"$f":"Show!$B$10&\"R 02.00 Rows {\"&COLUMN($C$1)&\"}\"&Index!$E$14","v":"!R 02.00 Rows {3}"},{"$f":"Show!$B$10&\"R 02.00 Columns {\"&COLUMN($D$1)&\"}\"","v":"!R 02.00 Columns {4}"}]
[null,"Rows",""]
[null,"Number of beneficiaries of contributions to discretionary pension benefits in year N","0240"]
[null,"Total amount of contributions to discretionary pension benefits (EUR) in year N (included in other forms of variable remuneration)","0250"]
[null,"Total amount of variable remuneration awarded for multi-year periods under programmes which are not revolved annually (EUR)","0260"]
[null,"For institutions that do not benefit from the derogation under Article 94(3)(a) of Directive 2013/36/EU at an institution-wide level\r\nTotal amount of variable remuneration of identified staff members benefitting from the derogations under Article 94(3)(b) of Directive 2013/36/EU","0270"]
[null,"For institutions that do not benefit from the derogation under Article 94(3)(a) of Directive 2013/36/EU at an institution-wide level\r\nTotal amount of fixed remuneration of identified staff members benefitting from the derogations under Article 94(3)(b) of Directive 2013/36/EU","0280"]
[null,null,null,null,null,null,null,null,null,null,null,{"$f":"Show!$B$10&Show!$B$10&\"R 02.00 Rows {\"&COLUMN($C$1)&\"}\"","v":"!!R 02.00 Rows {3}"},{"$f":"Show!$B$10&Show!$B$10&\"R 02.00 Columns {\"&COLUMN($G$1)&\"}\"","v":"!!R 02.00 Columns {7}"}]

{"sheet":"R_02.01","index":14,"n_rows":59,"n_cols":13,"rows_kept":59,"cut":false,"hidden":true,"merged":[[1,1,1,14],[4,1,4,11],[8,3,9,6],[10,3,12,3],[10,4,12,4],[10,5,12,5],[10,6,12,6]]}
["Back to Index"]
[null,"Information on remuneration of identified staff in investment firms"]
[]
[]
[null,"R 02.01"]
[]
[]
[]
[null,null,null,"Columns"]
[]
[null,null,null,"MB Supervisory function","MB Management function","Other senior management","Other identified staff"]
[]
[]
[null,null,null,"0010","0020","0090","0100",null,null,null,null,{"$f":"Show!$B$11&\"R 02.01 Rows {\"&COLUMN($C$1)&\"}\"&Index!$E$15","v":"!R 02.01 Rows {3}"},{"$f":"Show!$B$11&\"R 02.01 Columns {\"&COLUMN($D$1)&\"}\"","v":"!R 02.01 Columns {4}"}]
[null,"Rows",""]
[null,"Members (Headcount)","0010"]
[null,"Number of identified staff in FTE","0020"]
[null,"Total fixed remuneration (in EUR) in year N","0030"]
[null,"Of which: cash-based","0040"]
[null,"Of which: shares or equivalent ownership interests","0050"]
[null,"Of which: share-linked instruments or equivalent non-cash instruments","0060"]
[null,"Of which: other types of instruments under point (j)(iii) of Article 32(1) IFD","0070"]
[null,"Of which: non-cash instruments which reflect the instruments of the portfolios managed","0080"]
[null,"Of which: approved alternative arrangements","0090"]
[null,"Of which: Other forms","0100"]
[null,"Total variable remuneration (in EUR) in year N","0110"]
[null,"Of which: cash-based","0120"]
[null,"Of which: deferred","0130"]
[null,"Of which: shares or equivalent ownership interests","0140"]
[null,"Of which: deferred","0150"]
[null," Of which: share-linked instruments or equivalent non-cash instruments","0160"]
[null,"Of which: deferred","0170"]
[null,"Of which: other types of instruments under point (j)(iii) of Article 32(1) IFD","0180"]
[null,"Of which: deferred","0190"]
[null,"Of which: non-cash instruments which reflect the instruments of the portfolios managed","0200"]
[null,"Of which: deferred","0210"]
[null,"Of which: approved alternative arrangements","0220"]
[null,"Of which: deferred","0230"]
[null,"Of which: Other forms","0240"]
[null,"Of which: deferred","0250"]
[null,"Additional information regarding the above positions (all the amounts below should be included also in total variable remuneration)","0259"]
[null,"Total amount of outstanding deferred variable remuneration awarded for previous performance periods and not in year N","0260"]
[null,"Of which: due to vest in the financial year","0270"]
[null,"Of which: vesting in subsequent financial years","0280"]
[null,"Total amount of explicit ex-post performance adjustment made in the financial year to deferred variable remuneration that was due to vest in the financial year, applied in year N to previously awarded remuneration","0290"]
[null,"Total amount of explicit ex-post performance adjustments made in the financial year to deferred variable remuneration that was due to vest in future financial years, applied in year N to previously awarded remuneration","0300"]
[null,"Guaranteed variable remuneration in year N – total amount","0310"]
[null,"Guaranteed variable remuneration in year N – total number of beneficiaries","0320"]
[null,"Severance payments awarded in previous periods, paid out during the financial year – total amount","0330"]
[null,"Severance payments awarded in year N – total amount","0340"]
[null,"Of which: deferred severance payments awarded in year N","0350"]
[null,"Severance payments awarded in year N – number of beneficiaries","0360"]
[null,"Highest amount of severance payments awarded in year N to a single person","0370"]
[null,"Number of beneficiaries of contributions to discretionary pension benefits in year N","0380"]
[null,"Total amount of contributions to discretionary pension benefits in year N (included in other forms of variable remuneration)","0390"]
[null,"Total amount of variable remuneration awarded for multi-year periods under programmes which are not revolved annually","0400"]
[null,"For investment firms that do not benefit from the derogation under Article 32(4)(a) at an institutional level\r\nThereof: fixed remuneration of individual staff members benefitting from at least one of derogations under Article 32(4)(b)","0410"]
[null,"For investment firms that do not benefit from the derogation under Article 32(4)(a) at an institutional level\r\nThereof: variable remuneration of individual staff members benefitting from at least one of derogations under Article 32(4)(b)","0420"]
[null,null,null,null,null,null,null,null,null,null,null,{"$f":"Show!$B$11&Show!$B$11&\"R 02.01 Rows {\"&COLUMN($C$1)&\"}\"","v":"!!R 02.01 Rows {3}"},{"$f":"Show!$B$11&Show!$B$11&\"R 02.01 Columns {\"&COLUMN($G$1)&\"}\"","v":"!!R 02.01 Columns {7}"}]

{"sheet":"R_02.02","index":15,"n_rows":22,"n_cols":18,"rows_kept":22,"cut":false,"hidden":true,"merged":[[10,10,11,10],[10,11,11,11],[1,1,1,14],[4,1,4,11],[8,3,9,11],[10,3,11,3],[10,4,11,4],[10,5,11,5],[10,6,11,6],[10,7,11,7],[10,8,11,8],[10,9,11,9]]}
["Back to Index"]
[null,"Information on remuneration of identified staff per business area"]
[]
[]
[null,"R 02.02"]
[]
[]
[]
[null,null,null,"Columns"]
[]
[null,null,null,"MB Supervisory function","MB Management function","Dealing on own account, underwriting and placing of instruments","Investment advice, order execution","Portfolio management","Operation of MTF/OTF","Independent control functions","All other staff","Total"]
[]
[null,null,null,"0010","0020","0030","0040","0050","0060","0070","0080","0090",null,null,null,null,{"$f":"Show!$B$12&\"R 02.02 Rows {\"&COLUMN($C$1)&\"}\"&Index!$E$16","v":"!R 02.02 Rows {3}"},{"$f":"Show!$B$12&\"R 02.02 Columns {\"&COLUMN($D$1)&\"}\"","v":"!R 02.02 Columns {4}"}]
[null,"Rows",""]
[null,"Number of identified staff (headcount)","0010"]
[null,"Number of identified staff (FTEs)","0020"]
[null,"Number of ‘other senior management’","0030"]
[null,"Number of ‘other identified staff’","0031"]
[null,"Total remuneration (in EUR)","0040"]
[null,"Of which: variable remuneration (in EUR)","0050"]
[null,"Of which: fixed remuneration (in EUR)","0060"]
[null,null,null,null,null,null,null,null,null,null,null,null,null,null,null,null,{"$f":"Show!$B$12&Show!$B$12&\"R 02.02 Rows {\"&COLUMN($C$1)&\"}\"","v":"!!R 02.02 Rows {3}"},{"$f":"Show!$B$12&Show!$B$12&\"R 02.02 Columns {\"&COLUMN($L$1)&\"}\"","v":"!!R 02.02 Columns {12}"}]

{"sheet":"R_03.00","index":16,"n_rows":14,"n_cols":10,"rows_kept":14,"cut":false,"hidden":true,"merged":[[1,1,1,14],[4,1,4,11],[8,3,9,3]]}
["Back to Index"]
[null,"Information on identified staff remunerated EUR 1 million or more per financial year"]
[]
[]
[null,"R 03.00"]
[]
[]
[]
[null,null,null,"Columns"]
[]
[null,null,null,"Identified staff that are high earners as set out in Article 450(i) CRR"]
[null,null,null,"0020",null,null,null,null,{"$f":"Show!$B$13&\"R 03.00 Rows {\"&COLUMN($C$1)&\"}\"&Index!$E$17","v":"!R 03.00 Rows {3}"},{"$f":"Show!$B$13&\"R 03.00 Columns {\"&COLUMN($D$1)&\"}\"","v":"!R 03.00 Columns {4}"}]
[null,"Remuneration: Payment band","0010"]
[null,null,null,null,null,null,null,null,{"$f":"Show!$B$13&Show!$B$13&\"R 03.00 Rows {\"&COLUMN($C$1)&\"}\"","v":"!!R 03.00 Rows {3}"},{"$f":"Show!$B$13&Show!$B$13&\"R 03.00 Columns {\"&COLUMN($D$1)&\"}\"","v":"!!R 03.00 Columns {4}"}]

{"sheet":"R_05.00","index":17,"n_rows":35,"n_cols":11,"rows_kept":35,"cut":false,"hidden":true,"merged":[[1,1,1,14],[4,1,4,11],[8,3,9,4],[10,3,11,3],[10,4,11,4]]}
["Back to Index"]
[null,"Derogations from the application of requirements to pay out parts of variable remuneration deferred and in instruments under Directive 2013/36/EU (CRD)"]
[]
[]
[null,"R 05.00"]
[]
[]
[]
[null,null,null,"Columns"]
[]
[null,null,null,"Derogations on a firm wide basis under Art. 94(3)(a) CRD","Derogations for identified staff under Art. 94(3)(b) CRD"]
[]
[null,null,null,"0010","0020",null,null,null,null,{"$f":"Show!$B$14&\"R 05.00 Rows {\"&COLUMN($C$1)&\"}\"&Index!$E$18","v":"!R 05.00 Rows {3}"},{"$f":"Show!$B$14&\"R 05.00 Columns {\"&COLUMN($D$1)&\"}\"","v":"!R 05.00 Columns {4}"}]
[null,"Rows",""]
[null,"Does the institution apply the derogations regarding the requirement to pay out a part of the variable remuneration deferred and in instruments under Article 94(3)(a) CRD to all its identified staff","0010"]
[null,"Does the institution apply the derogation to the requirement under Article 94 (1)(l) CRD (pay out in instruments)","0020"]
[null,"Where the institution applies the derogation under 94 (1)(l) CRD, but with a lower threshold as implemented under national law, please indicate the threshold applied in EUR","0030"]
[null,"Number of identified staff benefitting from the above derogation","0040"]
[null,"Percentage of identified staff benefitting from the above derogation","0060"]
[null,"Total remuneration of identified staff benefitting from the above derogation","0070"]
[null,"Of which: variable remuneration","0080"]
[null,"Of which: fixed remuneration","0090"]
[null,"Does the institution apply the derogation to the requirement under Article 94 (1)(m) CRD (pay out under deferral arrangements)","0100"]
[null,"Where the institution applies the above derogation, but with a lower threshold as implemented under national law, please indicate the threshold applied in EUR","0110"]
[null,"Number of identified staff benefitting from the above derogation","0120"]
[null,"Percentage of identified staff benefitting from the above derogation","0130"]
[null,"Total remuneration of identified staff benefitting from the above derogation","0140"]
[null,"Of which: variable remuneration","0150"]
[null,"Of which: fixed remuneration","0160"]
[null,"Does the institution apply the derogation to the requirement under Article 94 (1) second paragraph of point (o) (derogations with regard to the pay out in instruments of discretionary pension benefits)","0170"]
[null,"Number of identified staff benefitting from the above derogation","0180"]
[null,"Total remuneration of identified staff benefitting from the above derogation","0190"]
[null,"Of which: variable remuneration","0200"]
[null,"Of which: fixed remuneration","0210"]
[null,null,null,null,null,null,null,null,null,{"$f":"Show!$B$14&Show!$B$14&\"R 05.00 Rows {\"&COLUMN($C$1)&\"}\"","v":"!!R 05.00 Rows {3}"},{"$f":"Show!$B$14&Show!$B$14&\"R 05.00 Columns {\"&COLUMN($E$1)&\"}\"","v":"!!R 05.00 Columns {5}"}]

{"sheet":"R_05.01","index":18,"n_rows":35,"n_cols":11,"rows_kept":35,"cut":false,"hidden":true,"merged":[[1,1,1,14],[4,1,4,11],[8,3,9,4],[10,3,11,3],[10,4,11,4]]}
["Back to Index"]
[null,"Derogations from the application of requirement to pay out a part of variable remuneration deferred and in instruments for investment firms under Directive (EU) 2019/2034"]
[]
[]
[null,"R 05.01"]
[]
[]
[]
[null,null,null,"Columns"]
[]
[null,null,null,"Derogation on a firm-wide basis under Art. 34(4)(a) IFD","Derogation for staff under Art. 34(4)(b) IFD"]
[]
[null,null,null,"0010","0020",null,null,null,null,{"$f":"Show!$B$15&\"R 05.01 Rows {\"&COLUMN($C$1)&\"}\"&Index!$E$19","v":"!R 05.01 Rows {3}"},{"$f":"Show!$B$15&\"R 05.01 Columns {\"&COLUMN($D$1)&\"}\"","v":"!R 05.01 Columns {4}"}]
[null,"Rows",""]
[null,"Does the investment firm apply the derogations regarding the requirement to pay out a part of the variable remuneration deferred and in instruments underArticle 34(4)(a) IFD to all its identified staff?","0010"]
[null,"Does the investment firm apply the derogation from the requirement under Article 32 (1)(j) IFD (pay-out in instruments)?","0020"]
[null,"Where the investment firm applies the above derogation, but with a lower threshold as implemented under national law, please indicate the threshold applied in EUR","0030"]
[null,"Number of identified staff benefitting from the above derogation","0040"]
[null,"Percentage of identified staff benefitting from the above derogation","0060"]
[null,"Total remuneration of identified staff benefitting from the above derogation","0070"]
[null,"Of which: variable remuneration","0080"]
[null,"Of which: fixed remuneration","0090"]
[null,"Does the investment firm apply the derogation from the requirement under Article 32 (1)(l) IFD (pay-out under deferral arrangements)?","0100"]
[null,"Where the investment firm applies the above derogation, but with a lower threshold as implemented under national law, please indicate the threshold applied in EUR","0110"]
[null,"Number of identified staff benefitting from the above derogation","0120"]
[null,"Percentage of identified staff benefitting from the above derogation","0130"]
[null,"Total remuneration of identified staff benefitting from the above derogation","0140"]
[null,"Of which: variable remuneration","0150"]
[null,"Of which: fixed remuneration","0160"]
[null,"Does the investment firm apply the derogation from the requirement under Article 32 (1), third subparagraph of paragraph 3 (derogations with regard to the pay-out in instruments of discretionary pension benefits)?","0170"]
[null,"Number of identified staff benefitting from the above derogation","0180"]
[null,"Total remuneration of identified staff benefitting from the above derogation","0190"]
[null,"Of which: variable remuneration","0200"]
[null,"Of which: fixed remuneration","0210"]
[null,null,null,null,null,null,null,null,null,{"$f":"Show!$B$15&Show!$B$15&\"R 05.01 Rows {\"&COLUMN($C$1)&\"}\"","v":"!!R 05.01 Rows {3}"},{"$f":"Show!$B$15&Show!$B$15&\"R 05.01 Columns {\"&COLUMN($E$1)&\"}\"","v":"!!R 05.01 Columns {5}"}]

{"sheet":"R_09.00","index":19,"n_rows":39,"n_cols":13,"rows_kept":39,"cut":false,"hidden":true,"merged":[[1,1,1,14],[4,1,4,11],[8,3,9,6],[10,3,13,3],[10,4,13,4],[10,5,13,5],[10,6,13,6]]}
["Back to Index"]
[null,"Remuneration awarded for the financial year"]
[]
[]
[null,"R 09.00"]
[]
[]
[]
[null,null,null,"Columns"]
[]
[null,null,null,"MB Supervisory function","MB Management function","Other senior management","Other  identified staff"]
[]
[]
[]
[null,null,null,"0010","0020","0030","0040",null,null,null,null,{"$f":"Show!$B$16&\"R 09.00 Rows {\"&COLUMN($C$1)&\"}\"&Index!$E$20","v":"!R 09.00 Rows {3}"},{"$f":"Show!$B$16&\"R 09.00 Columns {\"&COLUMN($D$1)&\"}\"","v":"!R 09.00 Columns {4}"}]
[null,"Rows",""]
[null,"Fixed remuneration","0005"]
[null,"Number of identified staff","0010"]
[null,"Total fixed remuneration","0020"]
[null,"Of which: cash-based","0030"]
[null,"Of which: shares or equivalent ownership interests","0040"]
[null,"Of which: share-linked instruments or equivalent non-cash instruments","0050"]
[null,"Of which: other instruments","0060"]
[null,"Of which: other forms","0070"]
[null,"Variable remuneration","0075"]
[null,"Number of identified staff","0080"]
[null,"Total variable remuneration","0090"]
[null,"Of which: cash-based","0100"]
[null,"Of which: deferred","0110"]
[null,"Of which: shares or equivalent ownership interests","0120"]
[null,"Of which: deferred","0130"]
[null,"Of which: share-linked instruments or equivalent non-cash instruments","0140"]
[null,"Of which: deferred","0150"]
[null,"Of which: other instruments","0160"]
[null,"Of which: deferred","0170"]
[null,"Of which: other forms","0180"]
[null,"Of which: deferred","0190"]
[null,"Total remuneration","0200"]
[null,null,null,null,null,null,null,null,null,null,null,{"$f":"Show!$B$16&Show!$B$16&\"R 09.00 Rows {\"&COLUMN($C$1)&\"}\"","v":"!!R 09.00 Rows {3}"},{"$f":"Show!$B$16&Show!$B$16&\"R 09.00 Columns {\"&COLUMN($G$1)&\"}\"","v":"!!R 09.00 Columns {7}"}]

{"sheet":"R_10.00","index":20,"n_rows":30,"n_cols":13,"rows_kept":30,"cut":false,"hidden":true,"merged":[[1,1,1,14],[4,1,4,11],[8,3,9,6],[10,3,12,3],[10,4,12,4],[10,5,12,5],[10,6,12,6]]}
["Back to Index"]
[null,"Special payments  to staff whose professional activities have a material impact on institutions’ risk profile (identified staff)"]
[]
[]
[null,"R 10.00"]
[]
[]
[]
[null,null,null,"Columns"]
[]
[null,null,null,"MB Supervisory function","MB Management function","Other senior management","Other identified staff"]
[]
[]
[null,null,null,"0010","0020","0030","0040",null,null,null,null,{"$f":"Show!$B$17&\"R 10.00 Rows {\"&COLUMN($C$1)&\"}\"&Index!$E$21","v":"!R 10.00 Rows {3}"},{"$f":"Show!$B$17&\"R 10.00 Columns {\"&COLUMN($D$1)&\"}\"","v":"!R 10.00 Columns {4}"}]
[null,"Rows",""]
[null,"Guaranteed variable remuneration awards","0005"]
[null,"Guaranteed variable remuneration awards - Number of identified staff","0010"]
[null,"Guaranteed variable remuneration awards -Total amount","0020"]
[null,"Of which guaranteed variable remuneration awards paid during the financial year, that are not taken into account in the bonus cap","0030"]
[null,"Severance payments awarded in previous periods, that have been paid out during the financial year","0035"]
[null,"Severance payments awarded in previous periods, that have been paid out during the financial year - Number of identified staff","0040"]
[null,"Severance payments awarded in previous periods, that have been paid out during the financial year - Total amount","0050"]
[null,"Severance payments awarded during the financial year","0055"]
[null,"Severance payments awarded during the financial year - Number of identified staff","0060"]
[null,"Severance payments awarded during the financial year - Total amount","0070"]
[null,"Of which paid during the financial year","0080"]
[null,"Of which deferred","0090"]
[null,"Of which severance payments paid during the financial year, that are not taken into account in the bonus cap","0100"]
[null,"Of which highest payment that has been awarded to a single person","0110"]
[null,null,null,null,null,null,null,null,null,null,null,{"$f":"Show!$B$17&Show!$B$17&\"R 10.00 Rows {\"&COLUMN($C$1)&\"}\"","v":"!!R 10.00 Rows {3}"},{"$f":"Show!$B$17&Show!$B$17&\"R 10.00 Columns {\"&COLUMN($G$1)&\"}\"","v":"!!R 10.00 Columns {7}"}]

{"sheet":"R_11.00","index":21,"n_rows":41,"n_cols":18,"rows_kept":41,"cut":false,"hidden":true,"merged":[[1,1,1,14],[4,1,4,11],[8,3,9,10],[10,3,10,10],[11,3,11,5],[11,6,12,6],[11,7,12,7],[11,8,12,8],[11,9,12,9],[11,10,12,10]]}
["Back to Index"]
[null,"Deferred remuneration"]
[]
[]
[null,"R 11.00"]
[]
[]
[]
[null,null,null,"Columns"]
[]
[null,null,null,"Deferred and retained remuneration"]
[null,null,null,"Total amount of  deferred remuneration awarded for previous performance periods",null,null,"Amount of performance adjustment made in the financial year to deferred remuneration  that was due to vest in the financial year","Amount of performance adjustment made in the financial year to deferred remuneration that was due to vest in future performance years","Total amount of adjustment during the financial year due to ex post implicit adjustments (i.e.changes of value of deferred remuneration due to the changes of prices of instruments)","Total amount of deferred remuneration awarded before the financial year actually paid out in the financial year","Total of amount of  deferred remuneration awarded for previous performance period that has vested but is subject to retention periods"]
[null,null,null,null,"Of which due to vest in the financial year","Of which vesting in subsequent financial years"]
[null,null,null,"0010","0020","0030","0040","0050","0060","0070","0080",null,null,null,null,null,{"$f":"Show!$B$18&\"R 11.00 Rows {\"&COLUMN($C$1)&\"}\"&Index!$E$22","v":"!R 11.00 Rows {3}"},{"$f":"Show!$B$18&\"R 11.00 Columns {\"&COLUMN($D$1)&\"}\"","v":"!R 11.00 Columns {4}"}]
[null,"Rows",""]
[null,"MB Supervisory function","0010"]
[null,"Cash-based","0020"]
[null,"Shares or equivalent ownership interests","0030"]
[null,"Share-linked instruments or equivalent non-cash instruments","0040"]
[null,"Other instruments","0050"]
[null,"Other forms","0060"]
[null,"MB Management function","0070"]
[null,"Cash-based","0080"]
[null,"Shares or equivalent ownership interests","0090"]
[null,"Share-linked instruments or equivalent non-cash instruments","0100"]
[null,"Other instruments","0110"]
[null,"Other forms","0120"]
[null,"Other senior management","0130"]
[null,"Cash-based","0140"]
[null,"Shares or equivalent ownership interests","0150"]
[null,"Share-linked instruments or equivalent non-cash instruments","0160"]
[null,"Other instruments","0170"]
[null,"Other forms","0180"]
[null,"Other identified staff","0190"]
[null,"Cash-based","0200"]
[null,"Shares or equivalent ownership interests","0210"]
[null,"Share-linked instruments or equivalent non-cash instruments","0220"]
[null,"Other instruments","0230"]
[null,"Other forms","0240"]
[null,"Total amount","0250"]
[null,null,null,null,null,null,null,null,null,null,null,null,null,null,null,null,{"$f":"Show!$B$18&Show!$B$18&\"R 11.00 Rows {\"&COLUMN($C$1)&\"}\"","v":"!!R 11.00 Rows {3}"},{"$f":"Show!$B$18&Show!$B$18&\"R 11.00 Columns {\"&COLUMN($K$1)&\"}\"","v":"!!R 11.00 Columns {11}"}]

{"sheet":"R_12.00","index":22,"n_rows":35,"n_cols":20,"rows_kept":35,"cut":false,"hidden":true,"merged":[[25,3,26,9],[27,3,27,9],[1,1,1,14],[4,1,4,11],[8,3,9,11],[10,3,10,5],[10,6,10,11],[21,1,21,11]]}
["Back to Index"]
[null,"Information on remuneration of staff whose professional activities have a material impact on institutions’ risk profile (identified staff)"]
[]
[]
[null,"R 12.00.a"]
[]
[]
[]
[null,null,null,"Columns"]
[]
[null,null,null,"Management body remuneration",null,null,"Business areas"]
[null,null,null,"MB Supervisory function","MB Management function","Total MB","Investment banking","Retail banking","Asset management","Corporate functions","Independent internal control functions","All other"]
[null,null,null,"0010","0020","0030","0040","0050","0060","0070","0080","0090",null,null,null,null,null,null,{"$f":"Show!$B$19&\"R 12.00.a Rows {\"&COLUMN($C$1)&\"}\"&Index!$E$23","v":"!R 12.00.a Rows {3}"},{"$f":"Show!$B$19&\"R 12.00.a Columns {\"&COLUMN($D$1)&\"}\"","v":"!R 12.00.a Columns {4}"}]
[null,"Rows",""]
[null,"Total number of identified staff","0010"]
[null,"Of which: members of the MB","0020"]
[null,"Total remuneration of identified staff","0050"]
[null,"Of which: variable remuneration","0060"]
[null,"Of which: fixed remuneration","0070"]
[null,null,null,null,null,null,null,null,null,null,null,null,null,null,null,null,null,null,{"$f":"Show!$B$19&Show!$B$19&\"R 12.00.a Rows {\"&COLUMN($C$1)&\"}\"","v":"!!R 12.00.a Rows {3}"},{"$f":"Show!$B$19&Show!$B$19&\"R 12.00.a Columns {\"&COLUMN($L$1)&\"}\"","v":"!!R 12.00.a Columns {12}"}]
[]
[null,"R 12.00.b"]
[]
[]
[]
[null,null,null,"Columns"]
[]
[null,null,null,"Business areas"]
[null,null,null,"Investment banking","Retail banking","Asset management","Corporate functions","Independent internal control functions","All other","Total"]
[null,null,null,"0040","0050","0060","0070","0080","0090","0100",null,null,null,null,null,null,null,null,{"$f":"Show!$B$19&\"R 12.00.b Rows {\"&COLUMN($C$1)&\"}\"&Index!$E$23","v":"!R 12.00.b Rows {3}"},{"$f":"Show!$B$19&\"R 12.00.b Columns {\"&COLUMN($D$1)&\"}\"","v":"!R 12.00.b Columns {4}"}]
[null,"Rows",""]
[null,"Total number of identified staff","0010"]
[null,"Of which: other senior management","0030"]
[null,"Of which: other identified staff","0040"]
[null,null,null,null,null,null,null,null,null,null,null,null,null,null,null,null,null,null,{"$f":"Show!$B$19&Show!$B$19&\"R 12.00.b Rows {\"&COLUMN($C$1)&\"}\"","v":"!!R 12.00.b Rows {3}"},{"$f":"Show!$B$19&Show!$B$19&\"R 12.00.b Columns {\"&COLUMN($J$1)&\"}\"","v":"!!R 12.00.b Columns {10}"}]